Cogmind - Beta 11.1 @@@ ROGUE MODE // 2022.06.05 @ 02:28:03 Player: Savant Result: Destroyed by S-43 Plague with Heavy Machine Gun Performance ------------- Evolutions (9) 4500 Regions Visited (34) 6800 Robots Destroyed (352) 1760 Value Destroyed (14872) 14872 Prototype IDs (174) 3480 Alien Tech Used (16) 3200 Bonus (16359) 16359 TOTAL SCORE: 50971 Bonus ------- High Alert Combat Kills 898 Follower Combat Kills 1333 Network Hubs Disabled 400 Met Data Miner 300 Met Zhirov 300 Found Hidden Lab 3000 Scanned by Researcher 500 Met MAIN.C 5000 Destroyed MAIN.C Shell 5000 Friendly Fire -372 Cogmind --------- Core Integrity 0/1850 Matter 12/300 Energy 350/350 System Corruption 20% Temperature Cool (0) Movement Flying (40) Location -1/Command Parts ------- > --- POWER (3) -------- (None) > --- PROPULSION (8) --- Combat Linear Gravjet Combat Linear Gravjet Q-thruster > --- UTILITY (12) ----- Spectral Analyzer Graphene Brace Spacefold Activator > --- WEAPON (2) ------- (None) > --- INVENTORY (5) ---- Vortex Chain Reactor Experimental Sensor Array Heavy Hardcell Cannon Peak State ------------ > --- POWER ------------ Light Quantum Reactor Matter Drive > --- PROPULSION ------- Combat Linear Gravjet Combat Linear Gravjet Combat Linear Gravjet Combat Linear Gravjet Combat Linear Gravjet Combat Linear Gravjet Combat Linear Gravjet Combat Linear Gravjet > --- UTILITY ---------- Coolant Network High-capacity Storage Unit Spectral Analyzer Experimental Targeting Computer Precision Energy Filter Advanced Phase Shifter Medium Regenerative Plating Graphene Brace Experimental EM Disruption Field Microwarp Drive > --- WEAPON ----------- Improved Potential Cannon > --- INVENTORY -------- Compact Particle Reactor Experimental Sensor Array Experimental Force Field AEGIS Remote Shield Core Regenerator Integrity Redistributor Subatomic Replicator Spacefold Activator Z-bomb Delivery System Guided Remote Datajack [Rating: 247] Favorites ----------- Power Backup Power VII Engine Heavy Ion Engine Power Core Backup Power VII Reactor Micro Antimatter Reactor Propulsion Combat Linear Gravjet Treads Light Treads Leg Flexi-carbon Leg Wheel Armored Wheel Hover Unit Combat Linear Gravjet Flight Unit Improved VTOL Module Utility Improved Hacking Suite Device Advanced Terrain Scanner Storage High-capacity Storage Unit Processor Experimental Signal Interpreter Hackware Improved Hacking Suite Protection Medium Regenerative Plating Artifact Spacefold Activator Weapon Heavy Phase Cannon Energy Gun Heavy Laser Energy Cannon Heavy Phase Cannon Ballistic Gun Shotgun Ballistic Cannon Heavy Hardcell Cannon Launcher Z-bomb Delivery System Special Weapon Molecular Deconstructor Impact Weapon Gravity Flail Slashing Weapon Greatsword Piercing Weapon Plasma Lance Special Melee Weapon Improved Datajack Build | -11 -10 -10 -9 -9 -9 -8 -8 -7 -7 -7 -7 -6 -6 -6 -6 -6 -6 -5 -5 -5 -5 -5 -5 -4 -4 -4 -4 -3 -3 -3 -2 -2 -1 -1 ------- Run | Scr Mat Min Mat Min Exi Min Mat Fac Low Low Dat Pro Fac Ext Cet Arc Hub Fac Was Fac Upp Upp Zhi Pro Fac Arm Lab Res Qua Sec Res Tes Acc Com Slots Evolved 18 | . . . 2 . . . 2 2 . . . . 2 . . . . 2 . . . . . . 2 . . 2 . . 2 . 2 . Power 2 | . . . . . . . . . . . . . . . . . . . . . . . . . 1 . . . . . . . 1 . Propulsion 6 | . . . 1 . . . 1 1 . . . . . . . . . . . . . . . . 1 . . 1 . . 1 . . . Utility 10 | . . . 1 . . . 1 1 . . . . 2 . . . . 2 . . . . . . . . . 1 . . 1 . 1 . Weapon . | . . . . . . . . . . . . . . . . . . . . . . . . . . . . . . . . . . . Parts Attached 934 | 7 15 12 45 2 . 13 53 13 3 2 2 . 16 18 11 7 17 62 3 30 8 3 3 4 85 86 6 97 42 82 40 46 43 58 Power 67 | 1 1 1 2 . . 1 1 1 . . . . . . 1 . 1 3 1 3 1 1 . 2 7 4 . 5 1 5 . 4 7 13 Engine 9 | 1 1 . 2 . . 1 1 . . . . . . . . . . 1 . 2 . . . . . . . . . . . . . . Core 20 | . . 1 . . . . . 1 . . . . . . 1 . 1 1 . 1 1 1 . 2 6 4 . . . . . . . . Reactor 38 | . . . . . . . . . . . . . . . . . . 1 1 . . . . . 1 . . 5 1 5 . 4 7 13 Propulsion 126 | 2 6 9 14 . . 5 10 5 . . . . 2 . 1 2 2 16 . . . 2 . . 6 9 . 10 5 1 6 5 1 7 Treads 26 | 1 2 4 5 . . 3 7 . . . . . . . . . . 2 . . . . . . . . . . . . . . . 2 Leg 8 | . . . . . . . 1 . . . . . . . . . . 4 . . . . . . . 1 . . . . . 1 . 1 Wheel 26 | 1 4 5 9 . . 2 2 . . . . . . . . . 1 2 . . . . . . . . . . . . . . . . Hover 54 | . . . . . . . . . . . . . . . . 1 . 8 . . . 1 . . 6 8 . 10 5 1 6 4 1 3 Flight 12 | . . . . . . . . 5 . . . . 2 . 1 1 1 . . . . 1 . . . . . . . . . . . 1 Utility 529 | 1 3 . 14 . . 3 28 4 3 2 . . 14 14 3 3 6 36 1 22 5 . 3 2 62 49 4 63 22 59 28 22 25 28 Device 394 | . 1 . 4 . . 2 19 2 3 2 . . 9 6 1 . 3 28 1 18 2 . 1 1 45 44 3 52 18 51 27 16 17 18 Storage 16 | 1 1 . 3 . . . . 1 . . . . . 1 . . . 3 . 1 . . . . 2 . . . 1 . . 2 . . Processor 17 | . 1 . 2 . . . 4 . . . . . 1 . 1 . 1 . . . 1 . . . 2 . . . . 1 . . 2 1 Hackware 28 | . . . 1 . . . . 1 . . . . 3 . . 3 . 3 . . 1 . 1 . 5 1 1 3 . . . 2 2 1 Protection 66 | . . . 4 . . 1 5 . . . . . 1 7 1 . 2 2 . 3 1 . 1 1 8 4 . 8 3 5 1 . 3 5 Artifact 8 | . . . . . . . . . . . . . . . . . . . . . . . . . . . . . . 2 . 2 1 3 Weapon 212 | 3 5 2 15 2 . 4 14 3 . . 2 . . 4 6 2 8 7 1 5 2 . . . 10 24 2 19 14 17 6 15 10 10 Energy Gun 11 | 1 . . . . . . 5 . . . . . . . . . . 1 . . . . . . . . . 3 . . . . 1 . Energy Cannon 76 | . . . . . . . . . . . . . . . . . . 4 . 4 1 . . . 5 11 1 8 8 14 6 7 3 4 Ballistic Gun 30 | 2 4 1 9 1 . 2 5 . . . . . . . . . 2 . . . . . . . . 1 . . . . . 3 . . Ballistic Cannon 1 | . . . . . . . . . . . . . . . . . . . . . . . . . . . . . . . . . . 1 Launcher 24 | . . . 3 1 . 2 . . . . . . . . 1 . 1 . 1 1 . . . . . 3 . 2 1 1 . 1 4 2 Special Weapon 14 | . . . . . . . . . . . . . . 2 1 . 2 2 . . . . . . 1 . 1 . . . . . 2 3 Impact Weapon 19 | . . . . . . . . . . . . . . . . . . . . . . . . . 2 6 . 3 2 2 . 4 . . Slashing Weapon 24 | . 1 . 2 . . . 4 2 . . 1 . . 2 4 1 3 . . . 1 . . . . . . . 3 . . . . . Piercing Weapon 8 | . . . . . . . . . . . . . . . . . . . . . . . . . 2 3 . 3 . . . . . . Special Melee Weapon 5 | . . 1 1 . . . . 1 . . 1 . . . . 1 . . . . . . . . . . . . . . . . . . Unidentified Prototypes 21 | . . . 1 . . . 1 . . . . . . 1 . . 2 . . 1 . . 1 . 1 . 1 . 2 2 1 4 1 2 Parts Lost 82 | . 1 1 4 . . 7 9 . . . . . 1 . 3 1 10 3 1 3 . 1 . . 1 8 . 2 1 . . . . 25 Power 16 | . . 1 . . . 1 . . . . . . . . 1 . 2 . 1 1 . 1 . . . 3 . 1 . . . . . 4 Propulsion 22 | . 1 . 1 . . 3 4 . . . . . . . . 1 4 2 . . . . . . . . . . . . . . . 6 Utility 30 | . . . 1 . . 2 2 . . . . . 1 . 1 . 2 . . 1 . . . . 1 4 . 1 . . . . . 14 Weapon 14 | . . . 2 . . 1 3 . . . . . . . 1 . 2 1 . 1 . . . . . 1 . . 1 . . . . 1 Highest Loss Streak 12 | . 1 1 3 . . 7 4 . . . . . 1 . 2 1 10 2 1 2 . 1 . . 1 3 . 1 1 . . . . 12 To Critical Strikes . | . . . . . . . . . . . . . . . . . . . . . . . . . . . . . . . . . . . Average Slot Usage (%) 96 | . 96 100 99 100 100 99 99 95 92 92 90 92 92 92 94 98 87 86 98 99 99 100 100 99 98 99 99 99 97 98 99 96 94 88 Engine 2 | . 14 10 10 11 11 11 9 . . . . . . . . . . . . 3 . . . . . . . . . . . . . . Core 3 | . . 3 . . . . . 6 7 7 7 7 6 6 6 6 5 1 . 1 5 5 5 4 7 9 10 1 . . . . 1 . Reactor 2 | . . . . . . . . . . . . . . . . . . 2 3 . . . . . 1 . . 7 9 8 8 7 9 9 Treads 3 | . 14 5 11 11 11 11 19 . . . . . . . . . . 7 . . . . . . . . . . . . . . . . Wheel 3 | . 14 22 20 22 22 21 15 . . . . . . . . . . 1 . . . . . . . . . . . . . . . . Hover 18 | . . . . . . . . . . . . . . . . . 4 1 29 29 29 28 29 29 30 30 31 32 32 32 33 31 31 30 Flight 4 | . . . . . . . . 36 38 38 38 38 33 33 33 31 24 . . . . . . . . . . . . . . . . . Device 10 | . 9 14 8 . . 4 6 15 23 23 23 23 14 11 7 13 11 10 10 10 11 11 11 10 9 9 8 8 8 8 13 13 13 13 Storage 6 | . 14 14 11 11 11 11 9 7 7 7 7 7 6 6 6 6 6 5 11 6 5 5 5 5 5 5 5 4 4 4 4 4 4 4 Processor 6 | . . . . . . . 8 7 7 7 7 7 6 6 9 6 6 5 5 5 6 11 11 11 9 10 10 9 9 9 8 8 8 7 Hackware 15 | . . . 6 11 11 6 . 6 . . . . 13 13 13 15 18 23 23 23 23 23 23 23 21 21 21 21 19 19 17 17 13 8 Protection 3 | . . . 6 11 11 11 11 . . . . . 3 7 6 3 . 4 . 4 3 . . . . . . 1 4 3 4 4 5 6 Energy Cannon 3 | . . . . . . . . . . . . . . . . . . 8 6 9 10 11 11 11 4 1 4 3 2 3 4 3 4 3 Ballistic Gun 3 | . 27 24 20 22 22 21 11 . . . . . . . . . . . . . . . . . . . . . . . . . . . Impact Weapon 1 | . . . . . . . . . . . . . . . . . . . . . . . . . 2 4 . . 2 3 4 3 . . Naked Turns . | . . . . . . . . . . . . . . . . . . . . . . . . . . . . . . . . . . . Heaviest Build 138 | 10 32 32 99 99 99 99 105 30 31 31 31 31 33 34 34 34 33 123 67 60 63 56 52 52 91 93 79 101 103 110 111 104 127 138 Greatest Support 140 | 10 40 40 24 22 22 22 60 34 34 34 34 34 34 34 34 34 33 140 78 64 78 62 78 78 90 99 99 117 117 117 134 136 136 136 Greatest Overweight (x) 8 | . 3 3 8 4 4 4 8 . 2 2 2 2 2 2 2 1 2 4 1 . . . . . 1 1 . 1 . 1 . . 1 1 Average Overweight (x) . | . 2 1 3 4 4 4 3 . . . . . . . . . . . . . . . . . . . . . . . . . . . Largest Inventory Capacity 25 | 8 15 15 25 25 25 25 25 25 15 15 15 15 15 15 15 15 15 25 15 15 15 15 15 15 20 20 20 20 20 20 20 20 20 20 Average Capacity 19 | 6 12 15 23 25 25 25 25 15 15 15 15 15 15 15 15 15 15 20 15 15 15 15 15 15 19 20 20 20 20 20 20 20 20 19 Most Carried 25 | 6 12 15 25 25 24 24 25 25 15 15 15 15 15 15 15 15 15 25 15 15 15 15 15 15 20 20 20 20 20 20 20 20 20 20 Average Carried 18 | 4 8 13 20 24 24 21 22 15 13 15 14 14 14 14 14 14 14 17 15 14 14 14 14 15 18 19 17 19 19 19 19 19 19 17 Final Capacity 25 | 8 15 15 25 25 25 25 25 15 15 15 15 15 15 15 15 15 15 15 15 15 15 15 15 15 20 20 20 20 20 20 20 20 20 5 Final Carried 25 | 6 12 15 25 24 24 17 25 15 15 15 15 15 15 15 15 15 10 15 15 14 15 15 15 15 20 18 20 20 16 19 20 20 20 5 Class Distribution -------------------- 23% | Wizard-Scout 19% | Hacker-Mutant 14% | Mutant 11% | Wizard-Mutant 9% | Hacker-Scout 6% | Hacker-Sprinter 5% | Scavenger-Mutant 4% | Scout Dominant Class ---------------- Mutant | -10/Materials Mutant | -10/Mines Mutant | -9/Materials Mutant | -9/Mines Mutant | -9/Exiles Mutant | -8/Mines Scavenger-Mutant | -8/Materials Sprinter | -7/Factory Scout | -7/Lower Caves Scout | -7/Lower Caves Scout | -7/Data Miner Scout | -6/Proximity Caves Hacker-Sprinter | -6/Factory Commander-Sprinter | -6/Extension Hacker-Sprinter | -6/Cetus Hacker-Sprinter | -6/Archives Hacker-Sprinter | -6/Hub_04(d) Hacker-Mutant | -5/Factory Hacker-Mutant | -5/Waste Hacker-Mutant | -5/Factory Hacker-Scout | -5/Upper Caves Hacker-Scout | -5/Upper Caves Hacker-Scout | -5/Zhirov Hacker-Scout | -4/Proximity Caves Hacker-Mutant | -4/Factory Wizard-Scout | -4/Armory Wizard-Mutant | -4/Lab Wizard-Scout | -3/Research Wizard-Scout | -3/Quarantine Wizard-Scout | -3/Section 7 Wizard-Scout | -2/Research Wizard-Scout | -2/Testing Hacker-Sprinter | -1/Access Hacker-Sprinter | -1/Command Resources | -11 -10 -10 -9 -9 -9 -8 -8 -7 -7 -7 -7 -6 -6 -6 -6 -6 -6 -5 -5 -5 -5 -5 -5 -4 -4 -4 -4 -3 -3 -3 -2 -2 -1 -1 ----------- Run | Scr Mat Min Mat Min Exi Min Mat Fac Low Low Dat Pro Fac Ext Cet Arc Hub Fac Was Fac Upp Upp Zhi Pro Fac Arm Lab Res Qua Sec Res Tes Acc Com Matter Collected 16933 | 220 312 584 679 37 200 302 1686 . 140 92 . 373 273 540 160 65 162 710 . 615 174 316 . 63 951 1107 . 1421 955 1211 414 808 1358 1005 Remotely . | . . . . . . . . . . . . . . . . . . . . . . . . . . . . . . . . . . . Salvage Created 15981 | . 376 265 820 14 . 345 1789 29 . . . 64 255 805 110 210 541 1632 . 128 24 84 . . 929 1103 . 937 782 491 510 898 842 1998 Parts 771 | . 40 22 53 4 . 10 107 4 . . . 3 9 35 8 22 38 57 . 11 1 . . . 23 49 . 60 22 20 39 30 42 62 Haulers Intercepted 13 | . . . 3 . . . 5 . . . . . 1 . . . . . . . . . . . 3 . . . . . . 1 . . Recyclers Shooed 9 | . 1 1 . . . . . . . . . . . . . . 1 3 . . . . . . . . . . . . . . . 3 Parts Field Recycled . | . . . . . . . . . . . . . . . . . . . . . . . . . . . . . . . . . . . Retrieved Matter . | . . . . . . . . . . . . . . . . . . . . . . . . . . . . . . . . . . . Parts Self-Destructed 7 | . . . . . . . . . 3 . . 4 . . . . . . . . . . . . . . . . . . . . . . Prevented 8 | . . . . . . . . . . . . 6 . . . . . . . . . 2 . . . . . . . . . . . . Kills | -11 -10 -10 -9 -9 -9 -8 -8 -7 -7 -7 -7 -6 -6 -6 -6 -6 -6 -5 -5 -5 -5 -5 -5 -4 -4 -4 -4 -3 -3 -3 -2 -2 -1 -1 ------- Run | Scr Mat Min Mat Min Exi Min Mat Fac Low Low Dat Pro Fac Ext Cet Arc Hub Fac Was Fac Upp Upp Zhi Pro Fac Arm Lab Res Qua Sec Res Tes Acc Com Combat Hostiles Destroyed 244 | . 13 4 22 4 . 12 27 . . . . . . 11 6 . 4 30 . 6 . . . . 9 21 . 14 2 7 6 7 13 26 Melee 32 | . . . . . . . . . . . . . . 11 3 . 2 1 . . . . . . 2 5 . 1 2 1 . 4 . . Guns 66 | . 13 4 13 . . 6 27 . . . . . . . . . . 1 . . . . . . . . . . . . . 2 . . Cannons 52 | . . . . . . . . . . . . . . . . . . 19 . 3 . . . . 3 4 . 3 . 1 4 . 4 11 AOE 66 | . . . 9 4 . 6 . . . . . . . . 3 . 2 . . 3 . . . . . 9 . 9 . 4 . . 6 11 Classes Destroyed 20 | . 5 3 1 . . 1 3 . . . . 1 . . . . . 1 . . . . . . . 2 . . 1 1 . . 1 . Worker 16 | . 1 1 1 . . . 1 1 . . . . . . . . 5 2 . 1 . . . . . . . 1 1 . 1 . . . Builder 12 | . 1 . . . . . . . . . . . . . . . 7 1 . . . . . . . . . 2 . . . . 1 . Tunneler 1 | . . 1 . . . . . . . . . . . . . . . . . . . . . . . . . . . . . . . . Hauler 13 | . . . 3 . . . 5 . . . . . 1 . . . . . . . . . . . 3 . . . . . . 1 . . Recycler 17 | . . 1 1 . . . 2 . . . . . 1 1 . . 2 . . . . . . . . . . 2 4 . . 2 1 . Minesweeper 2 | . . . . . . . . . . . . 2 . . . . . . . . . . . . . . . . . . . . . . Operator 7 | . . . . . . . 1 . . . . . 1 . . . . . . . . . . . . . . 1 1 1 . 1 1 . Drone 8 | . . . . . . . . . . . . . . . . . . . . . . . . . . . . . . 4 . . 3 1 Watcher 47 | . 2 . 2 . . . 4 . . . . . . . . . 3 4 . . . . . . 2 3 . 3 2 5 3 2 8 4 Swarmer 69 | . 9 . 10 4 . 3 5 . . . . . . 1 3 . 4 5 . 4 . . . . . 5 . 10 . . . . 3 3 Saboteur 1 | . . . . . . . . . . . . . . . . . . . . . . . . . . 1 . . . . . . . . Grunt 66 | . 4 2 8 . . 8 13 . . . . . . 1 2 . . 15 . . . . . . 4 2 . . . 1 . . . 6 Brawler 1 | . . . . . . . 1 . . . . . . . . . . . . . . . . . . . . . . . . . . . Duelist 3 | . . . . . . 1 . . . . . . . . . . . . . . . . . . . 2 . . . . . . . . Researcher 1 | . . . . . . . . . . . . . . . . . . . . . . . . . . . . . 1 . . . . . Sentry 37 | . . 2 4 . . . 7 . . . . . . 9 . . . 2 . . . . . . 3 3 . . . 2 1 . 4 . Specialist 3 | . . . . . . . . . . . . . . . . . . . . . . . . . . 2 . . . . . . . 1 Hunter 11 | . . . . . . . 1 . . . . . . . . . . 1 . . . . . . . 2 . 2 . . . . . 5 Programmer 41 | . . . . . . . . . . . . . . . . . . 7 . 2 . . . . 2 4 . 2 2 . 5 7 2 8 Q-Series 1 | . . . . . . . . . . . . . . . . . . . . . . . . . . . . . . . . . 1 . Cetus Guard 1 | . . . . . . . . . . . . . . . 1 . . . . . . . . . . . . . . . . . . . Combat Programmer 1 | . . . . . . . . . . . . . . . . . . . . . . . . . . . . . . . . . . 1 Decomposer 1 | . . . . . . . . . . . . . . . . . . . . . 1 . . . . . . . . . . . . . Packrat 1 | . . . . . . . . . . . . . . . . . . . . . . 1 . . . . . . . . . . . . Best Kill Streak 21 | . 5 2 11 4 . 6 5 1 . . . 1 1 4 3 . 21 6 . 5 . . . . 2 6 . 5 2 4 3 3 8 9 Combat Bots Only 10 | . 3 2 10 4 . 6 4 . . . . . . 4 3 . 4 5 . 4 . . . . 2 6 . 5 1 4 2 3 5 9 Max Kills in Single Turn 10 | . 2 1 4 3 . 2 2 1 . . . 1 1 1 3 . 10 2 . 2 1 1 . . 1 4 . 4 1 4 1 1 2 8 Gunslinging 1 | . . . . . . . 1 . . . . . . . . . . . . . . . . . . . . . . . . . . . Exploded 8 | . . . 3 3 . 2 . . . . . . . . 3 . 1 . . 2 . . . . . 3 . 4 . 4 . . 2 8 Melee 1 | . . . . . . . . . . . . . . 1 1 . 1 1 . . . . . . 1 1 . 1 1 1 . 1 . . Uniques/NPCs Destroyed 1 | . . . . . . . . . . . . . . . . . . . . . . . . . . . . . . . . . . 1 MAIN.C Shell (-1/Command) Combat | -11 -10 -10 -9 -9 -9 -8 -8 -7 -7 -7 -7 -6 -6 -6 -6 -6 -6 -5 -5 -5 -5 -5 -5 -4 -4 -4 -4 -3 -3 -3 -2 -2 -1 -1 -------- Run | Scr Mat Min Mat Min Exi Min Mat Fac Low Low Dat Pro Fac Ext Cet Arc Hub Fac Was Fac Upp Upp Zhi Pro Fac Arm Lab Res Qua Sec Res Tes Acc Com Damage Taken 29900 | . 657 104 788 101 . 843 1648 . . 15 . 48 141 337 425 20 590 2954 90 653 . 114 . 177 1357 2830 . 1420 1505 1096 264 394 512 10817 Core 4937 | . 113 32 108 30 . 97 170 . . . . 15 19 31 51 . 45 215 21 44 . . . 53 211 572 . 121 159 519 27 134 92 2058 Absorbed by Shields 1991 | . . . . . . . . . . . . . . 32 . . . . . . . . . . . . . 108 143 344 40 . 12 1312 Reduced by Siege Mode 360 | . . . . . . . . . . . . . . . . . . 130 . . . . . . . . . . . . . . . 230 Redirected to Shielding 958 | . . . . . . . . . . . . . . 6 71 . . . . . . . . . . . . . 136 . . . 40 705 Regen/Repaired (Parts) 9123 | . . . 229 . . . . . . . . . 38 66 . . . 590 . 490 . . . . 1543 126 . 1266 506 511 410 225 267 2856 Core Remaining (%) 63 | 100 . 42 . . . 41 69 . . . . 97 . . . . 82 . . . . . . 66 . . 29 . . 20 . 90 . . Volleys Fired 846 | . 36 11 49 2 . 25 111 . . . . . . 5 8 . 8 119 11 34 27 3 . 13 44 32 . 35 6 49 48 15 74 81 Largest 2 | . 2 2 2 1 . 2 2 . . . . . . 1 1 . 1 2 1 2 2 2 . 1 2 2 . 1 1 1 1 1 1 1 Hottest 240 | . 46 46 93 70 . 70 97 . . . . . . . 30 . 35 188 90 180 188 188 . 90 188 240 . 120 120 120 120 120 200 200 Shots Fired 1205 | . 72 22 95 2 . 45 219 . . . . . . 5 8 . 8 209 10 41 33 7 . 13 58 47 . 38 6 49 48 16 74 80 Gun 470 | . 72 22 91 . . 40 219 . . . . . . . . . 3 6 . . . . . . . . . 8 . . . 9 . . Cannon 661 | . . . . . . . . . . . . . . . . . . 198 2 39 33 7 . 13 57 39 . 26 5 48 48 7 67 72 Launcher 49 | . . . 4 2 . 5 . . . . . . . . 1 . 3 . 8 2 . . . . . 8 . 4 1 1 . . 6 4 Special 25 | . . . . . . . . . . . . . . 5 7 . 2 5 . . . . . . 1 . . . . . . . 1 4 Kinetic 401 | . 72 22 91 . . 40 156 . . . . . . . . . 3 . . . . . . . . . . . . . . 9 . 8 Thermal 722 | . . . . . . . 63 . . . . . . . . . . 204 2 39 33 7 . 13 57 39 . 26 5 48 48 7 67 64 Explosive 46 | . . . 4 2 . 5 . . . . . . . . 1 . 3 . 8 2 . . . . . 5 . 4 1 1 . . 6 4 Electromagnetic 11 | . . . . . . . . . . . . . . . . . . . . . . . . . . 3 . 8 . . . . . . Robot Hit Streak 48 | . 7 7 10 1 . 11 18 . . . . . . 6 8 . . 17 9 17 5 4 . . 11 7 . 2 . 5 6 6 11 48 Robot Miss Streak 7 | . 7 3 7 2 . 4 4 . . . . . . 1 1 . 2 5 . 1 1 . . . 2 6 . 2 . . 5 2 1 4 Penetration Max 1 | . . . . . . . 1 . . . . . . . . . . . . . . . . . . . . . . . . . . . Secondary Targets 8 | . . . 1 . . 1 6 . . . . . . . . . . . . . . . . . . . . . . . . . . . Max Gunslinging Chain 1 | . . . 1 . . 1 1 . . . . . . . . . . . . . . . . . . . . . . . . . . . Shots Hit Robots 814 | . 43 18 73 2 . 34 155 4 . . 1 2 8 25 13 9 6 128 7 10 6 1 . . 48 47 . 15 13 12 22 38 18 56 Core Hits 463 | . 26 11 49 4 . 29 69 1 . . . 2 2 12 6 5 31 39 4 8 2 1 . . 13 23 . 26 6 13 10 14 21 36 Critical Kills 29 | . . . . . . . . . . . . . . . . . . 5 . . . . . . 2 1 . 3 1 3 . 4 5 5 Critical Parts Destroyed 28 | . 1 . . . . . 1 . . . . . . . . . . . . . . . . . 2 7 . . 1 1 2 13 . . Critical Strikes 71 | . 1 . . . . . 4 . . . . . 1 2 1 . . 6 . . . . . . 7 9 . 4 2 4 2 17 5 6 Burn 4 | . . . . . . . 3 . . . . . . . . . . 1 . . . . . . . . . . . . . . . . Meltdown 21 | . . . . . . . . . . . . . . . . . . 5 . . . . . . 1 . . 3 . 2 . . 5 5 Destroy 11 | . 1 . . . . . 1 . . . . . . . . . . . . . . . . . . . . . . . . 9 . . Blast 1 | . . . . . . . . . . . . . . . . . . . . . . . . . . . . . . . . . . 1 Smash 27 | . . . . . . . . . . . . . . . . . . . . . . . . . 5 8 . . 2 2 2 8 . . Sever 4 | . . . . . . . . . . . . . 1 2 1 . . . . . . . . . . . . . . . . . . . Impale 3 | . . . . . . . . . . . . . . . . . . . . . . . . . 1 1 . 1 . . . . . . Melee Attacks 669 | . 1 4 4 . . . 11 20 11 8 1 20 22 37 11 10 17 7 . . . . . . 72 70 3 125 52 47 50 66 . . Impact 306 | . . . . . . . . . . . . . . . . . . . . . . . . . 54 57 . 11 21 47 50 66 . . Slashing 205 | . 1 . 4 . . . 11 17 11 8 . 20 22 37 11 8 17 7 . . . . . . . . . . 31 . . . . . Piercing 148 | . . . . . . . . . . . . . . . . . . . . . . . . . 18 13 3 114 . . . . . . Sneak Attacks 43 | . . 4 . . . . . 4 . . 1 2 2 6 . 2 . . . . . . . . 4 . . 6 6 1 . 5 . . Combat Hostiles 10 | . . . . . . . . 3 . . . . . 5 . . . . . . . . . . 1 . . . . . . 1 . . Follow-up Attacks 11 | . . . . . . . . . . . . . . . . 1 . . . . . . . . 4 6 . . . . . . . . Damage Inflicted 48092 | . 543 217 1558 180 . 1045 2698 67 . . . 237 691 1551 481 717 2161 4575 2056 788 206 35 . . 2360 3637 . 2412 1421 1438 1398 2306 4753 8561 Guns 5110 | . 539 217 1008 . . 419 2698 . . . . . . . . . . 102 . . . . . . . . . 6 . . . 121 . . Cannons 15191 | . . . . . . . . . . . . . . . . . . 4127 . 326 206 35 . . 693 935 . 412 91 597 945 148 2697 3979 Explosions 15212 | . . . 546 180 . 624 . . . . . . . . 103 . 1905 . 2056 461 . . . . . 1138 . 1152 . 361 . 48 2056 4582 Melee 12451 | . . . . . . . . 67 . . . 237 691 1551 378 717 256 229 . . . . . . 1667 1564 . 842 1330 480 453 1989 . . Ramming 128 | . 4 . 4 . . 2 . . . . . . . . . . . 117 . 1 . . . . . . . . . . . . . . Kinetic 4687 | . 539 217 1008 . . 419 1818 . . . . . . . . . . . . . . . . . . . . . . . . 121 . 565 Thermal 18441 | . . . . . . . 880 . . . . . . . . . . 4229 . 326 206 35 . . 693 935 . 412 91 597 945 148 2925 6019 Explosive 10772 | . . . 546 180 . 624 . . . . . . . . 103 . 628 . 2056 461 . . . . . 856 . 1152 . 361 . . 1828 1977 Electromagnetic 1613 | . . . . . . . . . . . . . . . . . 1277 . . . . . . . . 282 . 6 . . . 48 . . Impact 6372 | . . . . . . . . . . . . . . . . . . . . . . . . . 1481 1256 . . 713 480 453 1989 . . Slashing 4743 | . . . . . . . . 67 . . . 237 691 1551 378 717 256 229 . . . . . . . . . . 617 . . . . . Piercing 1336 | . . . . . . . . . . . . . . . . . . . . . . . . . 186 308 . 842 . . . . . . Highest Corruption 19 | . . . . . . . . 1 1 1 1 1 . . . . 4 7 7 11 11 11 11 11 5 8 8 3 4 4 . 1 . 19 Average Corruption 4 | . . . . . . . . 1 1 1 1 1 . . . . 2 3 6 8 11 11 11 11 1 1 8 2 3 4 . 1 . 2 Corruption Purged 14 | . . . . . . . . . . . . . . . . . . 5 . . . . . . 5 . . 4 . . . . . . Corruption Blocked . | . . . . . . . . . . . . . . . . . . . . . . . . . . . . . . . . . . . Effects 366 | . . . . . . . . 2 2 2 . . . . . . 1 53 3 45 55 22 5 24 22 21 7 42 9 37 . 3 . 11 Message Errors 91 | . . . . . . . . . 1 . . . . . . . 1 10 1 15 17 3 2 4 6 5 2 9 1 12 . . . 2 Matter Fused 88 | . . . . . . . . . 1 1 . . . . . . . 16 1 11 10 5 . 5 8 5 2 10 2 8 . . . 3 Heat Flow Errors 45 | . . . . . . . . 1 . . . . . . . . . 5 . 5 7 4 1 6 1 2 . 6 2 4 . . . 1 Energy Discharges 44 | . . . . . . . . 1 . . . . . . . . . 6 . 2 8 5 2 1 3 3 1 3 2 3 . 1 . 3 Parts Rejected 3 | . . . . . . . . . . . . . . . . . . 2 . . . . . . . . . . . . . 1 . . Data Loss (minor) 45 | . . . . . . . . . . . . . . . . . . 7 . 4 5 2 . 2 4 4 2 6 1 7 . . . 1 Data Loss (major) 16 | . . . . . . . . . . 1 . . . . . . . 2 . 4 3 . . 2 . . . 4 . . . . . . Misfires 15 | . . . . . . . . . . . . . . . . . . 3 . 1 3 3 . 1 . . . 3 . . . 1 . . Alerts 13 | . . . . . . . . . . . . . . . . . . 1 . 2 1 . . 1 . 2 . 1 1 3 . . . 1 Misdirections 2 | . . . . . . . . . . . . . . . . . . . . . 1 . . 1 . . . . . . . . . . Weapon Failures 4 | . . . . . . . . . . . . . . . . . . 1 1 1 . . . 1 . . . . . . . . . . Overload Shots . | . . . . . . . . . . . . . . . . . . . . . . . . . . . . . . . . . . . Overflow Damage 5217 | . . . 31 . . 5 . . . . . . 166 55 . 197 138 157 64 185 16 54 . . 365 529 . 149 605 41 358 934 298 870 Projectiles 734 | . . . . . . . . . . . . . . . . . . 128 . 45 16 . . . 15 11 . 14 . . 59 . 80 366 Explosions 1206 | . . . 31 . . 5 . . . . . . . . . . 101 . 64 140 . 54 . . . 28 . 44 . 17 . . 218 504 Melee 3277 | . . . . . . . . . . . . . 166 55 . 197 37 29 . . . . . . 350 490 . 91 605 24 299 934 . . Knockbacks 40 | . . . . . . . . . . . . . . . . . . 2 . . . . . . 5 7 . . 4 2 1 16 . 3 Impact 36 | . . . . . . . . . . . . . . . . . . 2 . . . . . . 5 7 . . 4 2 1 15 . . Kinetic 3 | . . . . . . . . . . . . . . . . . . . . . . . . . . . . . . . . . . 3 Secondary 1 | . . . . . . . . . . . . . . . . . . . . . . . . . . . . . . . . 1 . . Self-Inflicted Damage 1264 | . . . 6 69 . 154 . . . . . . . . . . 196 . 90 360 . 114 . . . 99 . . . . . 176 . . Shots 26 | . . . 1 2 . 5 . . . . . . . . . . 2 . 4 6 . 1 . . . 2 . . . . . 3 . . Rammed 9 | . 2 . 1 . . 1 . . . . . . . . . . . 4 . 1 . . . . . . . . . . . . . . Targets Rammed 11 | . 2 . 1 . . 1 . . . . . . . . . . . 6 . 1 . . . . . . . . . . . . . . Kicked . | . . . . . . . . . . . . . . . . . . . . . . . . . . . . . . . . . . . Crushed 2 | . . . . . . . . . . . . . . . . . . 2 . . . . . . . . . . . . . . . . Highest Temperature 406 | . 13 7 52 72 . 135 324 151 2 11 2 15 8 16 8 1 1 403 94 315 406 223 263 265 397 396 297 337 231 364 181 181 178 88 Average Temperature 67 | . 2 4 16 37 . 33 83 66 2 2 2 2 1 1 2 1 1 105 40 70 92 67 181 88 85 41 110 79 61 91 43 43 74 18 Received Heat Transfer 4464 | . 252 66 228 . . 360 711 . . 9 . 18 72 111 135 . 18 786 . 9 . . . . 340 655 . 96 236 93 22 18 27 202 Effects 33 | . . . . . . . 1 . . . . . . . . . . 1 . . 4 . . . 8 2 . 9 . 8 . . . . Shutdowns 2 | . . . . . . . . . . . . . . . . . . . . . . . . . . 2 . . . . . . . . Energy Bleed 10 | . . . . . . . 1 . . . . . . . . . . 1 . . . . . . 3 . . 3 . 2 . . . . Interference 14 | . . . . . . . . . . . . . . . . . . . . . . . . . 5 . . 5 . 4 . . . . Matter Decay 1 | . . . . . . . . . . . . . . . . . . . . . . . . . . . . . . 1 . . . . Damage (minor) 2 | . . . . . . . . . . . . . . . . . . . . . . . . . . . . 1 . 1 . . . . Damage (major) 4 | . . . . . . . . . . . . . . . . . . . . . 4 . . . . . . . . . . . . . Siege Activations 7 | . . . . . . . . . . . . . . . . . . 6 . . . . . . . . . . . . . . . 1 Total Turns 124 | . . . . . . . . . . . . . . . . . . 102 . . . . . . . . . . . . . . . 22 Longest Duration 34 | . . . . . . . . . . . . . . . . . . 34 . . . . . . . . . . . . . . . 22 Robots Corrupted . | . . . . . . . . . . . . . . . . . . . . . . . . . . . . . . . . . . . Combat Hostiles . | . . . . . . . . . . . . . . . . . . . . . . . . . . . . . . . . . . . Parts Fried 47 | . . . . . . . . . . . . . . . . . 4 . . . . . . . 9 8 . . 14 . 2 10 . . Impact Corruptions 66 | . . . . . . . . . . . . . . . . . . 1 . . . . . . 10 13 . . 7 1 8 26 . . Robots Melted 24 | . . . . . . . . . . . . . . . . . . 7 . . . . . . 1 . . 3 . 2 . . 5 6 Combat Hostiles 16 | . . . . . . . . . . . . . . . . . . 7 . . . . . . 1 . . 1 . . . . 3 4 Parts Melted 60 | . . . . . . . 1 . . . . . . 1 . . . 18 . 1 . . . . 4 2 . 1 . 5 2 . 16 9 Heat Transferred 16815 | . . . . . . . 2035 . . . . . . . . . . 5457 . 296 248 50 . . 833 740 . 333 74 481 703 111 1951 3503 Parts Sabotaged 3 | . . . . . . . . . . . . . . . . . . . . . . . . . . 3 . . . . . . . . Parts Stolen . | . . . . . . . . . . . . . . . . . . . . . . . . . . . . . . . . . . . Parts Stripped . | . . . . . . . . . . . . . . . . . . . . . . . . . . . . . . . . . . . Power Chain Reactions . | . . . . . . . . . . . . . . . . . . . . . . . . . . . . . . . . . . . Missiles Intercepted . | . . . . . . . . . . . . . . . . . . . . . . . . . . . . . . . . . . . Alert | -11 -10 -10 -9 -9 -9 -8 -8 -7 -7 -7 -7 -6 -6 -6 -6 -6 -6 -5 -5 -5 -5 -5 -5 -4 -4 -4 -4 -3 -3 -3 -2 -2 -1 -1 ------- Run | Scr Mat Min Mat Min Exi Min Mat Fac Low Low Dat Pro Fac Ext Cet Arc Hub Fac Was Fac Upp Upp Zhi Pro Fac Arm Lab Res Qua Sec Res Tes Acc Com Peak Influence 771 | . 271 190 507 199 . 206 502 422 . . . . 355 595 332 136 771 447 243 272 . . . . 336 757 . 748 282 379 368 449 681 693 Initial 377 | . . 50 74 49 . . 35 205 . . . . 15 22 332 91 44 377 96 168 . . . . . 161 . . 255 97 177 139 268 259 Average 210 | . 99 112 266 97 . 104 271 298 . . . . 177 246 202 118 205 220 181 157 . . . . 119 280 . 189 76 151 257 278 385 518 Maximum Alert Level 3 | . 1 . 2 . . 1 2 2 . . . . 1 2 1 . 3 2 1 1 . . . . 1 3 . 3 1 1 1 2 2 3 Low Security (%) 49 | 100 87 100 21 100 . 85 20 . . . . . 39 39 47 100 76 40 59 50 . . . . 72 45 . 63 95 67 17 18 . . Level 1 40 | . 12 . 67 . . 14 64 85 . . . . 60 43 52 . 6 51 40 49 . . . . 27 34 . 24 4 32 82 77 50 25 Level 2 10 | . . . 11 . . . 14 14 . . . . . 17 . . 4 8 . . . . . . . 15 . 11 . . . 3 49 71 Level 3 . | . . . . . . . . . . . . . . . . . 12 . . . . . . . . 4 . . . . . . . 3 Level 4 . | . . . . . . . . . . . . . . . . . . . . . . . . . . . . . . . . . . . Level 5 . | . . . . . . . . . . . . . . . . . . . . . . . . . . . . . . . . . . . High Security . | . . . . . . . . . . . . . . . . . . . . . . . . . . . . . . . . . . . Max Security . | . . . . . . . . . . . . . . . . . . . . . . . . . . . . . . . . . . . Squads Dispatched 86 | . 2 . 3 . . . 2 2 . . . . 3 . . . 4 10 . 3 . . . . 9 13 . 7 2 7 6 3 5 5 Investigation 26 | . 2 . 2 . . . 1 1 . . . . 2 . . . . 2 . 2 . . . . 4 3 . . . . 1 1 3 2 Extermination 33 | . . . . . . . . . . . . . . . . . 1 4 . 1 . . . . 3 7 . 4 1 3 4 2 2 1 Reinforcement 23 | . . . 1 . . . 1 1 . . . . 1 . . . 3 2 . . . . . . 2 3 . 3 1 4 1 . . . Assault 2 | . . . . . . . . . . . . . . . . . . . . . . . . . . . . . . . . . . 2 Garrison 2 | . . . . . . . . . . . . . . . . . . 2 . . . . . . . . . . . . . . . . Intercept . | . . . . . . . . . . . . . . . . . . . . . . . . . . . . . . . . . . . Searches Triggered 2 | . . . . . . . . . . . . . . . . . . . . . . . . . . . . 2 . . . . . . Data Miner Redirects 11 | . . . . . . . . . . . . . 1 . . . . . . 2 . . . . 2 2 . . . . . . 3 1 Construction Impeded 3 | . . . . . . . . . . . . . . . . . 1 1 . . . . . . . . . 1 . . . . . . Haulers Reinforced 3 | . . . . . . . . . . . . . 1 . . . . . . . . . . . 1 . . . . . 1 . . . Active Scanning Responses . | . . . . . . . . . . . . . . . . . . . . . . . . . . . . . . . . . . . Cargo Convoy Interrupts . | . . . . . . . . . . . . . . . . . . . . . . . . . . . . . . . . . . . Stealth | -11 -10 -10 -9 -9 -9 -8 -8 -7 -7 -7 -7 -6 -6 -6 -6 -6 -6 -5 -5 -5 -5 -5 -5 -4 -4 -4 -4 -3 -3 -3 -2 -2 -1 -1 --------- Run | Scr Mat Min Mat Min Exi Min Mat Fac Low Low Dat Pro Fac Ext Cet Arc Hub Fac Was Fac Upp Upp Zhi Pro Fac Arm Lab Res Qua Sec Res Tes Acc Com Distress Signals 44 | . 1 . 4 . . . 6 . . . . . 1 . 1 . . 4 . . . . . . 3 4 . 7 . 1 3 1 2 6 Communications Jammed . | . . . . . . . . . . . . . . . . . . . . . . . . . . . . . . . . . . . Distress Signals . | . . . . . . . . . . . . . . . . . . . . . . . . . . . . . . . . . . . Times Spotted 645 | . 31 5 32 4 . 14 53 12 5 6 . 6 9 29 12 14 14 43 6 9 . . . 4 34 54 . 48 19 22 23 20 22 95 Peak Tracking Total 26 | . 5 2 5 4 . 6 6 6 6 5 . 4 6 4 5 12 10 5 5 4 . . . 2 10 11 . 9 6 5 5 4 8 26 Tactical Retreats 94 | . 2 1 1 . . 1 5 2 3 2 . 4 1 2 . . 2 . . 2 . . . 1 5 13 . 17 . 13 4 3 1 9 Traps | -11 -10 -10 -9 -9 -9 -8 -8 -7 -7 -7 -7 -6 -6 -6 -6 -6 -6 -5 -5 -5 -5 -5 -5 -4 -4 -4 -4 -3 -3 -3 -2 -2 -1 -1 ------- Run | Scr Mat Min Mat Min Exi Min Mat Fac Low Low Dat Pro Fac Ext Cet Arc Hub Fac Was Fac Upp Upp Zhi Pro Fac Arm Lab Res Qua Sec Res Tes Acc Com Traps Triggered 19 | . . . . . . . 1 . . . . . . 1 . . . 3 . 2 . . . . 1 1 . 5 . . 2 . 1 2 Indirectly . | . . . . . . . . . . . . . . . . . . . . . . . . . . . . . . . . . . . Trap Hack Attempts 24 | . . . 24 . . . . . . . . . . . . . . . . . . . . . . . . . . . . . . . Triggered . | . . . . . . . . . . . . . . . . . . . . . . . . . . . . . . . . . . . Disarmed 29 | . . . 1 . . . . . . . . . . . . . . . . 10 . . . . . 6 . 6 2 . . 4 . . Reprogrammed 52 | . 8 . 7 . . . . . . . . . . . . . . . . 1 . . . . 24 4 . . . 4 4 . . . Reused 20 | . . . . . . . . . . . . 6 . . . . . . . . . . . . 9 1 . . . 4 . . . . Traps Extracted . | . . . . . . . . . . . . . . . . . . . . . . . . . . . . . . . . . . . Installed 14 | . . . . . . . . . . . . 14 . . . . . . . . . . . . . . . . . . . . . . Triggered 22 | . . . . . . . . . . . . 6 . . . . . . . . . 1 . . 10 1 . . . 4 . . . . Most Traps Carried 2 | . . . . . . . . . . . . 2 . . . . . . . . . . . . . . . . . . . . . . Machines | -11 -10 -10 -9 -9 -9 -8 -8 -7 -7 -7 -7 -6 -6 -6 -6 -6 -6 -5 -5 -5 -5 -5 -5 -4 -4 -4 -4 -3 -3 -3 -2 -2 -1 -1 ---------- Run | Scr Mat Min Mat Min Exi Min Mat Fac Low Low Dat Pro Fac Ext Cet Arc Hub Fac Was Fac Upp Upp Zhi Pro Fac Arm Lab Res Qua Sec Res Tes Acc Com Machines Disabled 73 | . . . . . . 1 1 . 1 . . . 1 2 . . 17 4 . 7 1 1 . . 1 4 1 2 4 9 4 10 1 1 Max in Single Turn 12 | . . . . . . 1 1 . 1 . . . 1 . . . 12 1 . 6 1 1 . . . 1 1 1 1 1 1 2 1 1 Garrison Access 14 | . . . . . . . . . . . . . 2 . . . . 2 . 2 . . . . 1 . . 2 1 . 2 . 2 . Network Hub 2 | . . . . . . . . . . . . . . . . . 2 . . . . . . . . . . . . . . . . . Machines Sabotaged . | . . . . . . . . . . . . . . . . . . . . . . . . . . . . . . . . . . . Garrisons Compromised . | . . . . . . . . . . . . . . . . . . . . . . . . . . . . . . . . . . . Overloaded Fab Kills . | . . . . . . . . . . . . . . . . . . . . . . . . . . . . . . . . . . . Hacking | -11 -10 -10 -9 -9 -9 -8 -8 -7 -7 -7 -7 -6 -6 -6 -6 -6 -6 -5 -5 -5 -5 -5 -5 -4 -4 -4 -4 -3 -3 -3 -2 -2 -1 -1 --------- Run | Scr Mat Min Mat Min Exi Min Mat Fac Low Low Dat Pro Fac Ext Cet Arc Hub Fac Was Fac Upp Upp Zhi Pro Fac Arm Lab Res Qua Sec Res Tes Acc Com Machines Accessed 263 | . 9 . 12 1 1 . 9 12 2 . 4 1 12 11 2 . 4 18 . 12 2 . 4 . 24 14 2 24 14 17 15 12 13 12 Terminals 148 | . 7 . 8 1 . . 8 7 . . . 1 6 10 2 . 4 8 . 5 . . . . 13 9 . 11 9 14 6 6 5 8 Fabricators 27 | . . . . . . . . 3 . . . . 1 . . . . 3 . 2 . . . . 3 3 . 3 . . 4 2 3 . Repair Stations 31 | . . . 1 . . . . 1 . . . . 2 1 . . . 3 . 1 . . . . 5 1 . 3 2 1 1 2 3 4 Recycling Units 10 | . 2 . 2 . . . . . . . . . 1 . . . . 2 . 1 . . . . 1 1 . . . . . . . . Scanalyzers 17 | . . . 1 . . . 1 . . . . . . . . . . . . 1 . . . . 1 . . 5 2 2 2 2 . . Garrison Access 15 | . . . . . . . . 1 . . . . 2 . . . . 2 . 2 . . . . 1 . . 2 1 . 2 . 2 . Total Hacks 1294 | . 20 . 48 2 1 . 34 33 6 . 30 2 40 53 4 . 14 121 . 65 2 . 17 . 152 126 19 127 57 95 68 49 54 55 Successful 977 | . 14 . 35 1 1 . 20 18 6 . 30 2 25 33 4 . 7 79 . 47 2 . 17 . 116 87 19 114 53 72 56 43 42 34 Failed 315 | . 5 . 13 1 . . 14 15 . . . . 14 20 . . 7 42 . 18 . . . . 36 39 . 13 4 23 12 6 12 21 Catastrophic 32 | . . . . . . . . 2 . . . . 1 . . . . 4 . 4 . . . . 5 7 . 1 . 3 1 . . 4 Database Lockouts 2 | . 1 . . . . . . . . . . . 1 . . . . . . . . . . . . . . . . . . . . . Manual 487 | . 10 . 14 2 . . 16 18 1 . . . 22 21 . . 12 45 . 24 . . . . 46 68 . 36 21 40 34 21 11 25 Terminals 851 | . 18 . 34 2 . . 30 23 . . . 2 25 47 4 . 14 90 . 42 . . . . 98 99 . 66 41 80 40 32 27 37 Fabricators 103 | . . . . . . . . 7 . . . . 3 . . . . 8 . 5 . . . . 15 17 . 15 . . 13 3 17 . Repair Stations 144 | . . . 6 . . . . 1 . . . . 6 6 . . . 10 . 6 . . . . 29 4 . 19 11 6 8 7 7 18 Recycling Units 31 | . 2 . 4 . . . . . . . . . 2 . . . . 10 . 4 . . . . 3 6 . . . . . . . . Scanalyzers 67 | . . . 4 . . . 4 . . . . . . . . . . . . 4 . . . . 6 . . 24 4 9 5 7 . . Garrison Access 23 | . . . . . . . . 2 . . . . 4 . . . . 3 . 4 . . . . 1 . . 3 1 . 2 . 3 . Terminal Hacks 495 | . 10 . 15 1 1 . 9 10 6 . 30 2 8 19 4 . 3 46 . 23 2 . 17 . 55 45 19 40 26 38 23 16 17 10 Record 51 | . . . . . 1 . . . 5 . 11 2 . . 3 . . 1 . . 1 . 5 . . . 19 2 . . . . 1 . Part Schematic 59 | . 1 . . 1 . . 1 1 . . 11 . 1 3 . . . 10 . 1 . . 4 . 7 2 . 6 3 4 2 1 . . Robot Schematic 10 | . . . . . . . . 1 . . 5 . . . . . . . . . . . . . 1 . . 1 . 1 . 1 . . Robot Analysis 14 | . . . . . . . . . . . . . . . . . . 1 . 1 . . 4 . . 2 . . 1 . 1 2 1 1 Prototype ID Bank 56 | . 3 . 1 . . . 2 2 . . 3 . 3 4 . . . 4 . 2 . . 4 . 7 6 . 4 3 3 1 . 2 2 Open Door 9 | . . . . . . . . . 1 . . . . . 1 . . . . . 1 . . . . . . . . 5 . . . 1 Level Access Points 7 | . . . . . . . . . . . . . . . . . . 1 . . . . . . 1 . . 1 . 1 1 1 . 1 Branch Access Points 11 | . . . 1 . . . 1 1 . . . . 1 1 . . . . . 1 . . . . 1 1 . 1 . . 1 . 1 . Emergency Access Points 1 | . . . . . . . . . . . . . . . . . . . . . . . . . . . . . . . . . . 1 Machine Index 10 | . . . . . . . . . . . . . . . . . . . . 1 . . . . 1 1 . 1 1 1 1 1 1 1 Terminal Index 9 | . . . . . . . . 1 . . . . . 1 . . 1 1 . . . . . . 1 1 . . . . 1 1 . 1 Fabricator Index 3 | . . . . . . . . . . . . . . . . . . 2 . . . . . . . 1 . . . . . . . . Repair Station Index 2 | . . . . . . . . . . . . . . 1 . . . 1 . . . . . . . . . . . . . . . . Scanalyzer Index 3 | . . . . . . . . . . . . . . . . . . 1 . . . . . . . . . . . . . 1 . 1 Alert Level 19 | . . . 1 . . . . 1 . . . . 1 . . . . 2 . 1 . . . . 1 1 . 1 3 3 3 . 1 . Unreport Threat 30 | . 1 . 2 . . . . 1 . . . . 1 2 . . . 5 . 1 . . . . 2 4 . 3 3 1 1 . 3 . Locate Traps 49 | . 2 . 3 . . . 1 1 . . . . . 2 . . 2 4 . 3 . . . . 9 5 . 4 3 4 2 2 2 . Disarm Traps 6 | . . . . . . . . . . . . . . . . . . . . 2 . . . . . 1 . 1 1 . . 1 . . Reprogram Traps 17 | . 2 . 3 . . . . . . . . . . . . . . . . 2 . . . . 5 3 . . . 1 1 . . . Dispatch Records 5 | . . . 1 . . . . . . . . . . . . . . 1 . . . . . . . 2 . . . 1 . . . . Maintenance Status 3 | . . . . . . . . . . . . . . . . . . 1 . . . . . . . . . . 1 . 1 . . . Security Status 5 | . . . . . . . . . . . . . . . . . . 1 . . . . . . 1 1 . . . . . 1 . 1 Patrol Status 1 | . . . . . . . . . . . . . . . . . . . . . . . . . . . . 1 . . . . . . Transport Status 4 | . . . . . . . . . . . . . . . . . . . . 1 . . . . 2 . . . . . 1 . . . Reinforcement Status 1 | . . . . . . . . . . . . . . . . . . . . . . . . . . 1 . . . . . . . . Recall Investigation 9 | . . . . . . . . . . . . . . . . . . 2 . 2 . . . . 4 1 . . . . . . . . Recall Extermination 18 | . . . . . . . . . . . . . . . . . . 1 . . . . . . 2 4 . 4 1 2 2 1 1 . Recall Reinforcements 8 | . . . . . . . . . . . . . . . . . . . . . . . . . . 3 . 1 . 4 . . . . Hauler Manifests 15 | . 1 . 1 . . . 3 . . . . . . 1 . . . 1 . 1 . . . . 2 . . 2 . 1 1 1 . . Registered Components 6 | . . . . . . . . . . . . . . 1 . . . 1 . . . . . . 1 . . 1 1 1 . . . . Registered Prototypes 3 | . . . . . . . . . . . . . . . . . . . . . . . . . 1 . . 1 . 1 . . . . Zone Layout 51 | . . . 2 . . . 1 1 . . . . 1 3 . . . 5 . 4 . . . . 6 5 . 5 5 4 3 2 4 . Fabricator Hacks 50 | . . . . . . . . 1 . . . . 1 . . . . 6 . 3 . . . . 10 7 . 7 . . 2 2 11 . Network Status 9 | . . . . . . . . 1 . . . . . . . . . . . . . . . . 1 2 . 1 . . 2 1 1 . Load Schematic 23 | . . . . . . . . . . . . . 1 . . . . 3 . 2 . . . . 5 3 . 3 . . . 1 5 . Build 18 | . . . . . . . . . . . . . . . . . . 3 . 1 . . . . 4 2 . 3 . . . . 5 . Repair Station Hacks 127 | . . . 6 . . . . 1 . . . . 5 3 . . . 10 . 5 . . . . 26 4 . 18 10 6 7 6 6 14 Scan Component 60 | . . . 3 . . . . . . . . . 2 2 . . . 5 . 2 . . . . 12 2 . 8 5 3 4 3 2 7 Repair 57 | . . . 3 . . . . . . . . . 2 1 . . . 5 . 2 . . . . 12 2 . 8 5 3 3 3 2 6 Refit 10 | . . . . . . . . 1 . . . . 1 . . . . . . 1 . . . . 2 . . 2 . . . . 2 1 Recycling Unit Hacks 10 | . . . 2 . . . . . . . . . 1 . . . . 2 . 1 . . . . 2 2 . . . . . . . . Report Inventory 8 | . . . 2 . . . . . . . . . 1 . . . . 2 . 1 . . . . 1 1 . . . . . . . . Retrieve Components 2 | . . . . . . . . . . . . . . . . . . . . . . . . . 1 1 . . . . . . . . Scanalyzer 63 | . . . 4 . . . 4 . . . . . . . . . . . . 4 . . . . 6 . . 24 2 9 4 6 . . Insert Component 36 | . . . 2 . . . 2 . . . . . . . . . . . . 2 . . . . 4 . . 11 2 8 2 3 . . Analyze 27 | . . . 2 . . . 2 . . . . . . . . . . . . 2 . . . . 2 . . 13 . 1 2 3 . . Garrison Access Hacks 13 | . . . . . . . . . . . . . 1 . . . . 2 . 2 . . . . 1 . . 2 1 . 2 . 2 . Seal Access 13 | . . . . . . . . . . . . . 1 . . . . 2 . 2 . . . . 1 . . 2 1 . 2 . 2 . Unauthorized Hacks 219 | . 4 . 8 . . . 7 6 . . . . 9 11 . . 4 13 . 9 . . . . 16 29 . 23 14 19 18 13 6 10 Terminals 165 | . 2 . 6 . . . 7 4 . . . . 7 11 . . 4 7 . 5 . . . . 11 19 . 15 14 19 9 12 3 10 Track 61 | . . . 1 . . . 2 1 . . . . 2 3 . . 1 3 . 1 . . . . 4 8 . 8 7 8 3 4 1 4 Assimilate 19 | . 1 . . . . . 2 2 . . . . 1 1 . . . . . . . . . . 2 . . 1 2 1 2 3 1 . Botnet 49 | . 1 . 3 . . . 2 1 . . . . 3 4 . . 2 3 . 2 . . . . 4 4 . 4 3 5 2 3 1 2 Disrupt 21 | . . . 1 . . . . . . . . . . 2 . . . 1 . 1 . . . . . 6 . 1 1 4 . 1 . 3 Operators 15 | . . . 1 . . . 1 . . . . . 1 1 . . 1 . . 1 . . . . 1 1 . 1 1 1 2 1 . 1 Fabricators 39 | . . . . . . . . 2 . . . . 1 . . . . 2 . 2 . . . . 4 7 . 8 . . 9 1 3 . Report 2 | . . . . . . . . . . . . . . . . . . . . . . . . . . . . 1 . . 1 . . . Prioritize 11 | . . . . . . . . . . . . . . . . . . 1 . 1 . . . . 2 2 . 2 . . . . 3 . Liberate 9 | . . . . . . . . 1 . . . . . . . . . . . . . . . . . 2 . 2 . . 4 . . . Fabnet 9 | . . . . . . . . 1 . . . . . . . . . . . . . . . . . 1 . 3 . . 4 . . . Recompile 8 | . . . . . . . . . . . . . 1 . . . . 1 . 1 . . . . 2 2 . . . . . 1 . . Repair Stations . | . . . . . . . . . . . . . . . . . . . . . . . . . . . . . . . . . . . Recycling Units 14 | . 2 . 2 . . . . . . . . . . . . . . 4 . 2 . . . . 1 3 . . . . . . . . Reject 5 | . . . . . . . . . . . . . . . . . . 2 . 1 . . . . 1 1 . . . . . . . . Recyclers 3 | . . . . . . . . . . . . . . . . . . 1 . 1 . . . . . 1 . . . . . . . . Mask 2 | . . . . . . . . . . . . . . . . . . 1 . . . . . . . 1 . . . . . . . . Tunnel 4 | . 2 . 2 . . . . . . . . . . . . . . . . . . . . . . . . . . . . . . . Scanalyzers . | . . . . . . . . . . . . . . . . . . . . . . . . . . . . . . . . . . . Garrison Access 1 | . . . . . . . . . . . . . 1 . . . . . . . . . . . . . . . . . . . . . Jam 1 | . . . . . . . . . . . . . 1 . . . . . . . . . . . . . . . . . . . . . Data Cores Recovered 3 | . . . . . . . . . . . . . . . . . . . . . . . . . . . . . 1 1 . . 1 . Used 1 | . . . . . . . . . . . . . . . . . . . . . . . . . . . . . 1 . . . . . Hacking Detections 160 | . 7 . 11 1 . . 9 11 . . . . 7 10 1 . 4 7 . 5 . . . . 14 9 . 17 6 5 7 7 10 12 Full Trace Events 8 | . . . . . . . . 1 . . . . . . . . . 1 . 1 . . . . 1 . . . . . . . 3 1 Feedback Events 1 | . . . . . . . . 1 . . . . . . . . . . . . . . . . . . . . . . . . . . Corruption 1 | . . . . . . . . 1 . . . . . . . . . . . . . . . . . . . . . . . . . . Feedback Blocked . | . . . . . . . . . . . . . . . . . . . . . . . . . . . . . . . . . . . Robot Schematics Acquired 11 | . . . . . . . . 1 . . 5 . . . . . . . . . . . . . 1 . . 1 1 1 . 1 . . Robots Built 6 | . . . . . . . . . . . . . . . . . . 2 . . . . . . 3 1 . . . . . . . . Authchips . | . . . . . . . . . . . . . . . . . . . . . . . . . . . . . . . . . . . Time 168 | . . . . . . . . . . . . . . . . . . 50 . . . . . . 76 42 . . . . . . . . Total Robot Build Rating 31 | . . . . . . . . . . . . . . . . . . 10 . . . . . . 15 6 . . . . . . . . Part Schematics Acquired 82 | . 1 . 2 1 . . 3 1 . . 11 . 1 3 . . . 10 . 3 . . 4 . 9 2 . 14 6 5 4 2 . . Parts Built 19 | . . . . . . . . . . . . . . . . . . 4 . 1 . . . . 3 2 . 4 . . . . 5 . Authchips 9 | . . . . . . . . . . . . . . . . . . 1 . . . . . . 2 1 . 3 . . . . 2 . Time 540 | . . . . . . . . . . . . . . . . . . 64 . 29 . . . . 138 32 . 110 . . . . 167 . Total Part Build Rating 136 | . . . . . . . . . . . . . . . . . . 32 . 7 . . . . 21 16 . 31 . . . . 29 . Parts Repaired 57 | . . . 3 . . . . . . . . . 2 1 . . . 5 . 2 . . . . 12 2 . 8 5 3 3 3 2 6 Time 2431 | . . . 90 . . . . . . . . . 120 22 . . . 266 . 54 . . . . 447 151 . 384 204 235 82 131 50 195 Parts Recycled . | . . . . . . . . . . . . . . . . . . . . . . . . . . . . . . . . . . . Recycled Matter . | . . . . . . . . . . . . . . . . . . . . . . . . . . . . . . . . . . . Retrieved Matter . | . . . . . . . . . . . . . . . . . . . . . . . . . . . . . . . . . . . Retrieved Components 13 | . . . . . . . . . . . . . . . . . . . . . . . . . 10 3 . . . . . . . . Parts Scanalyzed 20 | . . . 2 . . . 2 . . . . . . . . . . . . 2 . . . . 2 . . 8 . 1 2 1 . . Part Schematics Acquired 20 | . . . 2 . . . 2 . . . . . . . . . . . . 2 . . . . 2 . . 8 . 1 2 1 . . Parts Damaged 4 | . . . . . . . . . . . . . . . . . . . . . . . . . . . . 3 . . . 1 . . Bothacking | -11 -10 -10 -9 -9 -9 -8 -8 -7 -7 -7 -7 -6 -6 -6 -6 -6 -6 -5 -5 -5 -5 -5 -5 -4 -4 -4 -4 -3 -3 -3 -2 -2 -1 -1 ------------ Run | Scr Mat Min Mat Min Exi Min Mat Fac Low Low Dat Pro Fac Ext Cet Arc Hub Fac Was Fac Upp Upp Zhi Pro Fac Arm Lab Res Qua Sec Res Tes Acc Com Used RIF Installer . | . . . . . . . . . . . . . . . . . . . . . . . . . . . . . . . . . . . Robots Hacked 52 | . . 2 . . . . . . . . 1 . . . 1 2 . 1 . . . . . . . . . 2 . . 5 . 4 34 Non-combat 1 | . . 1 . . . . . . . . . . . . . . . . . . . . . . . . . . . . . . . . Combat 51 | . . 1 . . . . . . . . 1 . . . 1 2 . 1 . . . . . . . . . 2 . . 5 . 4 34 Robot Hacks Applied 8 | . . 3 . . . . . . . . 1 . . . . 2 . . . . . . . . . . . . . . . . 1 1 parse_system 7 | . . 2 . . . . . . . . 1 . . . . 2 . . . . . . . . . . . . . . . . 1 1 no_distress 1 | . . 1 . . . . . . . . . . . . . . . . . . . . . . . . . . . . . . . . Relay Couplers Released . | . . . . . . . . . . . . . . . . . . . . . . . . . . . . . . . . . . . Fabnet Peak Effective % 15 | . . . . . . . . . . . . 3 3 3 3 3 3 1 1 1 1 1 1 . . . . 3 3 3 10 10 15 15 Autooverrided 45 | . . . . . . . . . . . . . . . 1 . . 1 . . . . . . . . . 2 . . 5 . 3 33 Robots Rewired 28 | . . . . . . . . 1 . . . . . 22 . . . . . . . . . . . 5 . . . . . . . . Allies Hacked 1 | . . . . . . . . . . . . . . . . . . . . . . . . . . . . . . . . . . 1 Hacks Repelled . | . . . . . . . . . . . . . . . . . . . . . . . . . . . . . . . . . . . Allies | -11 -10 -10 -9 -9 -9 -8 -8 -7 -7 -7 -7 -6 -6 -6 -6 -6 -6 -5 -5 -5 -5 -5 -5 -4 -4 -4 -4 -3 -3 -3 -2 -2 -1 -1 -------- Run | Scr Mat Min Mat Min Exi Min Mat Fac Low Low Dat Pro Fac Ext Cet Arc Hub Fac Was Fac Upp Upp Zhi Pro Fac Arm Lab Res Qua Sec Res Tes Acc Com Total Allies 107 | . 1 . . . . . 1 2 . . . 1 1 28 1 . . 3 . . . . . . 5 6 . 2 1 . 12 3 7 33 Largest Group 19 | . 1 . . . . . 1 2 1 . . 1 1 19 18 . . 2 . . . . . . 3 3 . 1 1 . 3 4 1 11 Highest-Rated Group 649 | . 10 . . . . . 10 29 10 . . 96 26 498 473 . . 82 . . . . . . 87 161 . 56 26 . 174 142 171 649 Highest-Rated Ally 171 | . 10 . . . . . 10 20 10 . . 96 26 159 39 . . 41 . . . . . . 29 56 . 56 26 . 148 45 171 82 Total Orders 15 | . 2 . . . . . . . . . . . . 6 . . . . . . . . . . . 2 . . . . . 5 . . STAY 9 | . 1 . . . . . . . . . . . . 3 . . . . . . . . . . . 1 . . . . . 4 . . FOLLOW 6 | . 1 . . . . . . . . . . . . 3 . . . . . . . . . . . 1 . . . . . 1 . . Ally Attacks 331 | . . . . . . . . . . . . 11 . 140 41 . . 12 . . . . . . 21 23 . 8 . . 34 . 12 29 Total Damage 8387 | . . . . . . . . . . . . 363 . 2933 1041 . . 362 . . . . . . 363 1183 . 203 . . 823 . 344 772 Kills 47 | . . . . . . . . . . . . 1 . 27 6 . . 1 . . . . . . 1 6 . 2 . . 3 . . . Allies Corrupted 2 | . . . . . . . . . . . . . . . . . . 1 . . . . . . . . . . . . . . . 1 Allies Melted 3 | . . . . . . . . . . . . 1 . . 2 . . . . . . . . . . . . . . . . . . . Intel | -11 -10 -10 -9 -9 -9 -8 -8 -7 -7 -7 -7 -6 -6 -6 -6 -6 -6 -5 -5 -5 -5 -5 -5 -4 -4 -4 -4 -3 -3 -3 -2 -2 -1 -1 ------- Run | Scr Mat Min Mat Min Exi Min Mat Fac Low Low Dat Pro Fac Ext Cet Arc Hub Fac Was Fac Upp Upp Zhi Pro Fac Arm Lab Res Qua Sec Res Tes Acc Com Robot Analysis Total 14 | . . . . . . . . . . . . . . . . . . 1 . 1 . . 4 . . 2 . . 1 . 1 2 1 1 Derelict Logs Recovered 12 | . . . . 3 . . . . 1 2 . 2 . . . . . . . . 1 1 . 2 . . . . . . . . . . Drone Launches . | . . . . . . . . . . . . . . . . . . . . . . . . . . . . . . . . . . . Drone Recoveries . | . . . . . . . . . . . . . . . . . . . . . . . . . . . . . . . . . . . Exploration | -11 -10 -10 -9 -9 -9 -8 -8 -7 -7 -7 -7 -6 -6 -6 -6 -6 -6 -5 -5 -5 -5 -5 -5 -4 -4 -4 -4 -3 -3 -3 -2 -2 -1 -1 ------------- Run | Scr Mat Min Mat Min Exi Min Mat Fac Low Low Dat Pro Fac Ext Cet Arc Hub Fac Was Fac Upp Upp Zhi Pro Fac Arm Lab Res Qua Sec Res Tes Acc Com Turns Passed 35232 | 55 1004 373 1637 771 276 677 2182 276 492 368 42 741 625 1445 209 76 362 3347 98 1188 1339 671 102 639 2890 2297 184 3274 1180 2013 1221 1195 1165 818 Spaces Moved 39614 | 48 679 281 873 516 191 396 1051 692 1270 1089 103 1681 1442 1764 350 155 633 1755 105 1184 986 901 135 861 3279 2129 241 3951 1739 2554 1922 1755 1706 1197 Core 179 | 2 . . . . . . . . 17 14 4 50 42 46 2 . 2 . . . . . . . . . . . . . . . . . Treads 1060 | . 20 9 . . . . 3 . . . . . . . . . . 1028 . . . . . . . . . . . . . . . . Legs 108 | . . . . . . . . . . . . . . . . . . 108 . . . . . . . . . . . . . . . . Wheels 4520 | 46 659 272 873 516 191 396 1048 . . . . . . . . . 33 486 . . . . . . . . . . . . . . . . Hover 24544 | . . . . . . . . . . . . . . . . . . 133 105 1184 986 901 135 861 3279 2129 241 3951 1739 2493 1922 1750 1704 1031 Flight 8971 | . . . . . . . . 692 1253 1075 99 1631 1400 1718 348 155 598 . . . . . . . . . . . . . . . . 2 Fastest Speed 23 | 50 80 95 95 145 145 145 140 23 23 23 23 23 23 23 23 23 23 64 64 68 64 68 64 64 58 50 50 41 41 41 36 32 32 32 Average Speed 57 | 78 113 101 138 145 145 145 151 25 24 24 27 26 26 26 23 24 31 148 67 68 64 71 68 64 58 54 50 46 41 42 40 38 34 34 Slowest Speed 325 | 80 240 160 210 145 145 145 325 26 150 150 150 150 150 150 150 96 150 260 146 72 68 72 72 64 123 123 50 144 46 138 43 40 140 140 Overloaded Moves . | . . . . . . . . . . . . . . . . . . . . . . . . . . . . . . . . . . . Propulsion Burnouts . | . . . . . . . . . . . . . . . . . . . . . . . . . . . . . . . . . . . Robots Hopped 46 | . . . . . . . . 7 . 1 . . 7 17 . . 14 . . . . . . . . . . . . . . . . . Cave-ins Triggered . | . . . . . . . . . . . . . . . . . . . . . . . . . . . . . . . . . . . Teleports 4 | . . . . . . . . . . . . . . . . . . . . . . . . . . 1 . . 2 1 . . . . Spacefolds 24 | . . . . . . . . . . . . . . . . . . . . . . . . . . . . . . 7 . 2 1 14 Microwarps 18 | . . . . . . . . . . . . . . . . . . . . . . . . . . . . . . 4 . . . 14 Exploration Rate (%) 68 | 3 87 62 76 100 54 97 76 21 98 96 75 88 29 87 70 86 36 38 67 35 92 92 60 90 53 62 96 72 95 82 45 97 26 49 Regions Visited 34 Branch Regions 22 Pre-discovered Areas 10 | . 2 . 2 . 1 . . . 1 . 1 . . . . . . . . . . . 3 . . . . . . . . . . . Known Exits Taken 27 | . . . 1 . . 1 1 1 1 1 1 1 1 1 1 1 1 . . 1 1 1 1 1 1 1 1 1 1 1 1 1 1 . Unknown Exits Taken 5 | 1 1 1 . 1 1 . . . . . . . . . . . . . . . . . . . . . . . . . . . . . Scrap Searched 19 | . . 1 . 2 . 1 . . 2 4 . 3 . . . . . . . . 3 2 . 1 . . . . . . . . . . Spaces Dug 689 | . 1 . 3 . . . 10 14 10 8 . 18 13 6 . . 19 29 2 28 24 2 . 12 61 57 . 114 52 58 55 22 62 9 Terrain Destroyed 1712 | . 1 . 38 24 . 42 10 14 10 8 . 18 13 6 . . 353 70 103 98 26 15 . 13 65 171 . 180 52 60 62 31 149 80 Melee 356 | . 1 . 3 . . . 10 14 10 8 . 18 13 6 . . 11 . . . . . . . 31 18 . 98 26 29 39 21 . . Projectile 301 | . . . . . . . . . . . . . . . . . . 70 2 30 26 5 . 13 34 16 . 16 3 31 23 2 19 11 AOE 1055 | . . . 35 24 . 42 . . . . . . . . . . 342 . 101 68 . 10 . . . 137 . 66 23 . . 8 130 69 Terrain Rammed . | . . . . . . . . . . . . . . . . . . . . . . . . . . . . . . . . . . . Walls Destroyed . | . . . . . . . . . . . . . . . . . . . . . . . . . . . . . . . . . . . Machines Disabled . | . . . . . . . . . . . . . . . . . . . . . . . . . . . . . . . . . . . Actions | -11 -10 -10 -9 -9 -9 -8 -8 -7 -7 -7 -7 -6 -6 -6 -6 -6 -6 -5 -5 -5 -5 -5 -5 -4 -4 -4 -4 -3 -3 -3 -2 -2 -1 -1 --------- Run | Scr Mat Min Mat Min Exi Min Mat Fac Low Low Dat Pro Fac Ext Cet Arc Hub Fac Was Fac Upp Upp Zhi Pro Fac Arm Lab Res Qua Sec Res Tes Acc Com Total 49651 | 61 840 346 1187 538 190 454 1420 763 1425 1169 115 1941 1628 2639 443 185 750 2283 119 1524 1657 927 143 936 4052 3084 300 5137 2096 3292 2233 2151 2209 1414 Wait 6729 | . 85 23 154 16 . 16 134 15 139 72 8 185 138 647 43 . 73 260 . 231 616 13 2 55 533 710 31 864 217 560 158 242 340 149 Move 39313 | 47 678 280 872 515 190 395 1050 679 1269 1086 102 1680 1427 1737 349 154 608 1755 104 1183 985 900 134 860 3278 2128 240 3950 1738 2503 1921 1751 1704 1061 Hop 32 | . . . . . . . . 5 . 1 . . 7 9 . . 10 . . . . . . . . . . . . . . . . . Pick Up 384 | 7 11 9 26 1 . 2 32 7 1 . . 21 10 7 11 6 7 33 . 20 10 4 1 1 21 22 11 25 11 21 4 6 18 18 Fast Attach 191 | 5 3 . 7 . . . 6 1 . . 1 . 1 1 2 4 1 18 1 6 3 1 2 2 22 12 . 10 17 7 11 20 12 15 Attach 191 | 1 1 1 8 . . 7 11 8 1 . 1 . 4 4 7 . 11 16 . 4 . 2 . . 8 11 1 10 8 15 1 3 10 37 Detach 91 | . 2 . 6 . . . 6 5 1 . 1 . . . 2 . 3 12 . 1 . . . . 10 2 . 3 2 7 . 3 4 21 Swap 574 | 1 11 11 30 2 . 6 37 4 2 2 . . 11 13 2 3 5 28 2 20 5 . 2 2 55 64 6 77 22 67 28 23 21 12 Drop 399 | . 10 7 6 2 . 2 22 19 1 . 1 21 8 7 8 10 7 29 1 24 11 4 2 3 19 25 8 26 22 16 12 22 24 20 Fire 846 | . 36 11 49 2 . 25 111 . . . . . . 5 8 . 8 119 11 34 27 3 . 13 44 32 . 35 6 49 48 15 74 81 Melee 645 | . 1 4 4 . . . 11 20 11 8 1 20 22 37 11 8 17 7 . . . . . . 62 62 3 121 52 47 50 66 . . Ram 1 | . . . . . . . . . . . . . . . . . . . . 1 . . . . . . . . . . . . . . Kick . | . . . . . . . . . . . . . . . . . . . . . . . . . . . . . . . . . . . Crush 10 | . 2 . 1 . . 1 . . . . . . . . . . . 6 . . . . . . . . . . . . . . . . Escape Stasis 37 | . . . . . . . . . . . . . . 18 . . . . . . . . . . . . . 16 1 . . . 2 . Rewire 170 | . . . . . . . . . . . . . . 154 . . . . . . . . . . . 16 . . . . . . . . Trap 38 | . . . 24 . . . . . . . . 14 . . . . . . . . . . . . . . . . . . . . . . Miscellaneous . | . . . . . . . . . . . . . . . . . . . . . . . . . . . . . . . . . . . Route ------- -11/Scrapyard -10/Materials (discovered 4 exits: *Mat x2 / [*Min x2]) -10/Mines -9/Materials (discovered 3 exits: *Mat x2 / *Min) -9/Mines (discovered 3 exits: *Mat x2 / *Exi) -9/Exiles -8/Mines (discovered 2 exits: *Mat x2) -8/Materials (discovered 3 exits: *Fac x3) -7/Factory (discovered 4 exits: *Sto x2 / *Low x2) -7/Lower Caves -7/Lower Caves (discovered 2 exits: *Fac / *Dat) -7/Data Miner -6/Proximity Caves -6/Factory (discovered 5 exits: *Fac / *Low x2 / *Ext x2) -6/Extension (discovered 2 exits: *Fac / *Cet) -6/Cetus -6/Archives (discovered 2 exits: *Hub x2) -6/Hub_04(d) -5/Factory (discovered 4 exits: *Fac x4) -5/Waste -5/Factory (discovered 3 exits: *Fac / *Upp x2) -5/Upper Caves -5/Upper Caves (discovered 2 exits: *Fac / *Zhi) -5/Zhirov -4/Proximity Caves -4/Factory (discovered 7 exits: *Res x4 / *Upp x2 / *Arm) -4/Armory (discovered 2 exits: Res / *Lab) -4/Lab -3/Research (discovered 5 exits: *Res x3 / *Qua x2) -3/Quarantine (discovered 2 exits: *Res / *Sec) -3/Section 7 -2/Research (discovered 5 exits: *Acc x3 / *Tes x2) -2/Testing -1/Access -1/Command (discovered 2 exits: *Sur x2) History --------- Turn | Location | Event 10 | -11/Scrapyard | Discovered new exit (range 16) 56 | -11/Scrapyard | Entered Materials 257 | -10/Materials | Discovered new exit (range 16) 320 | -10/Materials | Build established: Mutant 536 | -10/Materials | Discovered new exit (range 16) 538 | -10/Materials | Central database locked down 582 | -10/Materials | Discovered new exit (range 3) 696 | -10/Materials | Discovered new exit (range 10) 1060 | -10/Materials | Entered Mines 1087 | -10/Mines | YI-UF0 nonchalantly dropped a Grenade Launcher on the ground 1173 | -10/Mines | Core integrity fell below 50% 1333 | -10/Mines | Discovered new exit (range 12) 1390 | -10/Mines | Found YI-UF0's Bottomless Matter Pit 1395 | -10/Mines | Found YI-UF0's Doublenader 1433 | -10/Mines | Entered Materials 1433 | -9/Materials | Evolved 2 slots: Propulsion x1, Utility x1 1788 | -9/Materials | Destroyed 10 combat bots 1839 | -9/Materials | Lost 3 parts (1n1u1w) 2212 | -9/Materials | Discovered new exit (range 11) 2253 | -9/Materials | Identified exit to Materials 2441 | -9/Materials | Identified exit to Mines 2495 | -9/Materials | Repaired Arm. Wheel 2529 | -9/Materials | Repaired Arm. Wheel 2556 | -9/Materials | Repaired Lgt. Treads 2878 | -9/Materials | Discovered exit to Materials (range 3) 3070 | -9/Materials | Entered Mines 3102 | -9/Mines | Learned Materials machine intel 3136 | -9/Mines | Met a Derelict bent on vengeance 3191 | -9/Mines | Learned Materials security intel 3208 | -9/Mines | Discovered exit to Materials (range 15) 3248 | -9/Mines | Discovered exit to Materials (range 15) 3518 | -9/Mines | Deemed a non-threat by the Exiles lab entrance 3518 | -9/Mines | Discovered new exit (range 5) 3643 | -9/Mines | Learned Materials emergency access door positions 3841 | -9/Mines | Entered Exiles 3876 | -9/Exiles | Met 8R-AWN 3901 | -9/Exiles | Met EX-HEX 3994 | -9/Exiles | Met EX-DEC 4020 | -9/Exiles | Learned location of Zion (-6) 4094 | -9/Exiles | Discovered new exit (range 14) 4117 | -9/Exiles | Entered Mines 4478 | -8/Mines | Discovered exit to Materials (range 4) 4540 | -8/Mines | Core integrity fell below 50% 4592 | -8/Mines | Lost 7 parts (1p3n2u1w) 4598 | -8/Mines | Discovered exit to Materials (range 8) 4794 | -8/Mines | Entered Materials 4794 | -8/Materials | Evolved 2 slots: Propulsion x1, Utility x1 4797 | -8/Materials | Loaded intel: 51 machine locations 5163 | -8/Materials | Lost 4 parts (2n2w) 5553 | -8/Materials | Build established: Scavenger-Mutant 5700 | -8/Materials | Discovered new exit (range 5) 5937 | -8/Materials | Discovered new exit (range 6) 6371 | -8/Materials | Discovered new exit (range 7) 6381 | -8/Materials | Identified exit to Factory 6976 | -8/Materials | Entered Factory 6976 | -7/Factory | Accompanied by 1 ally 6976 | -7/Factory | Evolved 2 slots: Propulsion x1, Utility x1 7124 | -7/Factory | Identified exit to Storage 7124 | -7/Factory | Identified exit to Lower Caves 7252 | -7/Factory | Entered Lower Caves 7252 | -7/Lower Caves | Accompanied by 1 ally 7661 | -7/Lower Caves | Learned Factory garrison access intel 7663 | -7/Lower Caves | Discovered new exit (range 11) 7665 | -7/Lower Caves | Identified exit to Lower Caves 7711 | -7/Lower Caves | Acquired the password to a Derelict Tinkerer's latest research 7715 | -7/Lower Caves | Found Prototype Special Weapon 7732 | -7/Lower Caves | Learned Factory trap positions 7744 | -7/Lower Caves | Entered another Lower Caves area 7755 | -7/Lower Caves | Discovered new exit (range 11) 7759 | -7/Lower Caves | Identified exit to Factory 7982 | -7/Lower Caves | Attracted the attention of an 0b10 checkpoint 7984 | -7/Lower Caves | Learned Factory garrison access intel 7992 | -7/Lower Caves | Discovered new exit (range 10) 7998 | -7/Lower Caves | Build established: Scout 8111 | -7/Lower Caves | Learned Factory terminal intel 8111 | -7/Lower Caves | Identified exit to Data Miner 8112 | -7/Lower Caves | Entered Data Miner 8114 | -7/Data Miner | Discovered new exit (range 6) 8116 | -7/Data Miner | Identified exit to Proximity Caves 8119 | -7/Data Miner | Met Data Miner 8126 | -7/Data Miner | Learned location of Section 7 (-3) 8126 | -7/Data Miner | Acquired the access code to Warlord's prototype stash 8130 | -7/Data Miner | Received God Mode back door access code from Data Miner 8154 | -7/Data Miner | Entered Proximity Caves 8251 | -6/Proximity Caves | Learned Factory security intel 8301 | -6/Proximity Caves | Learned Factory emergency access door positions 8533 | -6/Proximity Caves | Escorted by Enhanced Grunt 8752 | -6/Proximity Caves | Discovered exit to Factory (range 14) 8895 | -6/Proximity Caves | Entered Factory 8895 | -6/Factory | Evolved 2 slots: Utility x2 8896 | -6/Factory | Loaded intel: 80 trap records 8899 | -6/Factory | Loaded intel: 28 terminal locations 8900 | -6/Factory | Loaded intel: 4 garrison access locations 8939 | -6/Factory | Incoming investigation squad redirected 8970 | -6/Factory | Repaired Imp. VTOL Module? 9145 | -6/Factory | Discovered new exit (range 4) 9146 | -6/Factory | Identified exit to Lower Caves 9251 | -6/Factory | Discovered new exit (range 15) 9258 | -6/Factory | Identified exit to Factory 9269 | -6/Factory | Identified exit to Extension 9269 | -6/Factory | Central database locked down 9419 | -6/Factory | Build established: Hacker-Sprinter 9458 | -6/Factory | Repaired Imp. VTOL Module? 9520 | -6/Factory | Entered Extension 9576 | -6/Extension | Rescued a captive Derelict 9592 | -6/Extension | Identified exit to Cetus 9839 | -6/Extension | Rescued A7 9988 | -6/Extension | Rescued a captive Derelict 10301 | -6/Extension | Identified Molecular Deconstructor 10333 | -6/Extension | Spotted B-75 Beast 10350 | -6/Extension | Allies destroyed B-75 Beast 10351 | -6/Extension | Spotted B-75 Beast 10375 | -6/Extension | Extracted ID and sensor layout for unrecognized location from A7's data core 10387 | -6/Extension | Build established: Commander-Sprinter 10501 | -6/Extension | Rescued a captive Derelict 10665 | -6/Extension | Repaired Greatsword 10890 | -6/Extension | Rescued a captive Derelict 10895 | -6/Extension | Discovered exit to Factory (range 10) 10965 | -6/Extension | Entered Cetus 10965 | -6/Cetus | Accompanied by 18 allies 10977 | -6/Cetus | Spotted Cetus Guard 10977 | -6/Cetus | Spotted Cetus Guard 10982 | -6/Cetus | Spotted Cetus Guard 10984 | -6/Cetus | Spotted Cetus Guard 11007 | -6/Cetus | Allies destroyed Cetus Guard 11010 | -6/Cetus | Destroyed Cetus Guard 11013 | -6/Cetus | Allies destroyed Cetus Guard 11017 | -6/Cetus | Allies destroyed Cetus Guard 11137 | -6/Cetus | Discovered new exit (range 16) 11140 | -6/Cetus | Identified exit to Archives 11174 | -6/Cetus | Entered Archives 11184 | -6/Archives | Met Zhirov 11190 | -6/Archives | Reinforcements dispatched to Archives 11201 | -6/Archives | Discovered new exit (range 15) 11215 | -6/Archives | Discovered new exit (range 16) 11235 | -6/Archives | Reinforcements dispatched to Archives 11237 | -6/Archives | Zhirov warped through subspace 11250 | -6/Archives | Identified exit to Hub_04(d) 11250 | -6/Archives | Entered Hub_04(d) 11308 | -6/Hub_04(d) | Discovered exit to Factory (range 7) 11310 | -6/Hub_04(d) | Spotted B-75 Beast 11551 | -6/Hub_04(d) | Network Hub disabled 11562 | -6/Hub_04(d) | Network Hub disabled 11593 | -6/Hub_04(d) | Lost 10 parts (2p4n2u2w) 11607 | -6/Hub_04(d) | Spotted Lightning 11612 | -6/Hub_04(d) | Entered Factory 11612 | -5/Factory | Evolved 2 slots: Utility x2 11613 | -5/Factory | Loaded intel: 2 garrison access locations 11805 | -5/Factory | Build established: Hacker-Mutant 11844 | -5/Factory | Repaired Adv. Weight Redist. System? 11982 | -5/Factory | Repaired Arm. Wheel 11996 | -5/Factory | Repaired Centrium Medium Armor Plating? 12042 | -5/Factory | Identified exit to Factory 12531 | -5/Factory | Repaired Adv. Plasma Cannon? 12568 | -5/Factory | Fabricated H-66 Slayer? 12706 | -5/Factory | Repaired Arm. Wheel? 12753 | -5/Factory | P-70 Sage assimilated allied Slayer 6a 13229 | -5/Factory | Garrison activated, responded to threat 13834 | -5/Factory | Garrison activated, responded to threat 14775 | -5/Factory | Fabricated Cmb. Antigrav System (x2) 14838 | -5/Factory | Fabricated Cmb. Antigrav System (x2) 14959 | -5/Factory | Manually triggered Chute Trap 14959 | -5/Factory | Sucked down chute 14959 | -5/Factory | Entered Waste 14968 | -5/Waste | Spotted C-40 Crusher 14968 | -5/Waste | Spotted C-40 Crusher 14971 | -5/Waste | Spotted C-40 Crusher 14971 | -5/Waste | Spotted C-40 Crusher 14974 | -5/Waste | EMP discharged 15015 | -5/Waste | Spotted C-40 Crusher 15019 | -5/Waste | Spotted C-40 Crusher 15045 | -5/Waste | Discovered new exit (range 16) 15056 | -5/Waste | Identified exit to Factory 15057 | -5/Waste | Entered Factory 15229 | -5/Factory | Repaired Centrium Medium Armor Plating? 15264 | -5/Factory | Repaired Adv. Cooling System 15696 | -5/Factory | Identified exit to Upper Caves 15726 | -5/Factory | Incoming investigation squad redirected 15827 | -5/Factory | Discovered exit to Factory (range 9) 15964 | -5/Factory | Incoming investigation squad redirected 15965 | -5/Factory | Fabricated Lrn. Sensor Array? 16126 | -5/Factory | System corruption reached 10% 16245 | -5/Factory | Entered Upper Caves 16652 | -5/Upper Caves | Learned Factory stockpile data 17518 | -5/Upper Caves | Discovered new exit (range 4) 17519 | -5/Upper Caves | Identified exit to Upper Caves 17534 | -5/Upper Caves | Found Alien Artifact 17584 | -5/Upper Caves | Entered another Upper Caves area 17596 | -5/Upper Caves | Discovered exit to Factory (range 16) 17723 | -5/Upper Caves | Build established: Hacker-Scout 17885 | -5/Upper Caves | Learned Factory non-interactive machine intel 18015 | -5/Upper Caves | Discovered new exit (range 19) 18031 | -5/Upper Caves | Identified exit to Zhirov 18255 | -5/Upper Caves | Entered Zhirov 18255 | -5/Zhirov | Discovered new exit (range 3) 18262 | -5/Zhirov | Identified exit to Proximity Caves 18287 | -5/Zhirov | Learned location of Testing (-2) 18287 | -5/Zhirov | Learned location of Command (-1) 18306 | -5/Zhirov | Found Alien Artifact 18306 | -5/Zhirov | Identified Integrated Reactor 18306 | -5/Zhirov | Installed Integrated Reactor, increased core energy generation (+10) 18317 | -5/Zhirov | Found Alien Artifact 18357 | -5/Zhirov | Entered Proximity Caves 18525 | -4/Proximity Caves | Learned Research machine intel 18527 | -4/Proximity Caves | Learned Research emergency access door positions 18880 | -4/Proximity Caves | Discovered exit to Factory (range 13) 18996 | -4/Proximity Caves | Entered Factory 18996 | -4/Factory | Evolved 2 slots: Power x1, Propulsion x1 18998 | -4/Factory | Loaded intel: 208 non-interactive machine locations 19189 | -4/Factory | Repaired Centrium Medium Armor Plating? 19268 | -4/Factory | Repaired Cmb. Antigrav System? 19306 | -4/Factory | Identified exit to Upper Caves 19306 | -4/Factory | Identified exit to Armory 19378 | -4/Factory | Repaired Hvy. Phase Cannon? 19521 | -4/Factory | Spotted B-86 Titan 19697 | -4/Factory | Repaired Centrium Medium Armor Plating? 19778 | -4/Factory | Build established: Hacker-Mutant 20231 | -4/Factory | Repaired Adv. Plasma Cannon? 20239 | -4/Factory | Fabricated Exp. Hacking Suite? 20309 | -4/Factory | Incoming investigation squad redirected 20415 | -4/Factory | Discovered new exit (range 5) 20418 | -4/Factory | Identified exit to Research 20440 | -4/Factory | Repaired Cmb. Gravmag System? 20484 | -4/Factory | Repaired Cmb. Antigrav System 20517 | -4/Factory | Repaired Lrn. Sensor Array 21083 | -4/Factory | Fabricated G-50 Soldier? 21157 | -4/Factory | Fabricated Exp. Signal Interpreter? 21194 | -4/Factory | Incoming investigation squad redirected 21216 | -4/Factory | Fabricated Exp. Hacking Suite? 21414 | -4/Factory | Identified Dimensional Node Initializer 21414 | -4/Factory | Identified Transdimensional Reconstructor 21512 | -4/Factory | Repaired Centrium Medium Armor Plating? 21587 | -4/Factory | Build established: Wizard-Mutant 21621 | -4/Factory | Repaired Cld. Fission Core 21657 | -4/Factory | Repaired Cmb. Antigrav System 21694 | -4/Factory | Repaired Cmb. Antigrav System 21886 | -4/Factory | Entered Armory 22030 | -4/Armory | Fabricated D-63 Destroyer (x1) 22086 | -4/Armory | Fabricated Cmb. Antigrav System (x2) 22147 | -4/Armory | Repaired Cld. Fission Core 22236 | -4/Armory | Found Prototype Launcher 22237 | -4/Armory | Identified Com. Tesla Bomb Launcher 22305 | -4/Armory | Build established: Wizard-Scout 22700 | -4/Armory | Incoming investigation squad redirected 23243 | -4/Armory | Found Fusion Bomb Launcher 23326 | -4/Armory | Repaired Lrn. Sensor Array? 23504 | -4/Armory | Incoming investigation squad redirected 23647 | -4/Armory | P-70 Sage assimilated allied Veteran 7b 23648 | -4/Armory | P-70 Sage assimilated allied Veteran 7a 23664 | -4/Armory | Core integrity fell below 50% 23716 | -4/Armory | Lost 3 parts (1p2u) 24137 | -4/Armory | Warped through subspace to slip node 24137 | -4/Armory | Discovered new exit (range 1) 24137 | -4/Armory | Identified exit to Lab 24147 | -4/Armory | Discovered exit to Research (range 22) 24183 | -4/Armory | Entered Lab 24185 | -4/Lab | Discovered exit to Research (range 9) 24191 | -4/Lab | Hidden lab's door opened automatically 24191 | -4/Lab | Sensor layout match revealed 24204 | -4/Lab | Gained access to the hidden lab's interior 24216 | -4/Lab | Unable to decrypt terminal 24219 | -4/Lab | Found Alien Artifact 24227 | -4/Lab | Found Integrated Reactor 24229 | -4/Lab | Installed Integrated Reactor, increased core energy generation (+10) 24235 | -4/Lab | Found Transdimensional Reconstructor 24242 | -4/Lab | Found Alien Artifact 24258 | -4/Lab | Unable to decrypt terminal 24303 | -4/Lab | Found Prototype Energy Gun 24305 | -4/Lab | Found Prototype Energy Cannon 24307 | -4/Lab | Found Prototype Protection 24309 | -4/Lab | Identified Med. Regenerative Plating 24309 | -4/Lab | Found Prototype Hackware 24318 | -4/Lab | Identified Hyp. EM Gauss Rifle 24325 | -4/Lab | Identified Warp Cannon 24331 | -4/Lab | Identified Deep Network Scanner 24338 | -4/Lab | Found Prototype Special Weapon 24357 | -4/Lab | Identified Gui. Remote Datajack 24367 | -4/Lab | Entered Research 24367 | -3/Research | Evolved 2 slots: Propulsion x1, Utility x1 24369 | -3/Research | Loaded intel: 94 machine locations 24444 | -3/Research | Repaired Cmb. Antigrav System 24444 | -3/Research | Fabricated Cmb. Linear Gravjet? 24457 | -3/Research | Spotted B-86 Titan 24458 | -3/Research | Identified exit to Quarantine 24520 | -3/Research | Repaired Cmb. Linear Gravjet? 24543 | -3/Research | Fabricated Exp. Sensor Array (x1) 24587 | -3/Research | Discovered new exit (range 15) 24772 | -3/Research | Identified Core Regenerator 24772 | -3/Research | Identified Core Reset Matrix 24812 | -3/Research | Repaired Cmb. Linear Gravjet? 25056 | -3/Research | Repaired Cmb. Linear Gravjet? 26049 | -3/Research | Found Prototype Device 26122 | -3/Research | Identified Exp. EM Disruption Field 26247 | -3/Research | Found Prototype Device 26289 | -3/Research | Identified Exp. ECM Suite 26333 | -3/Research | Found Exp. ECM Suite 26408 | -3/Research | Discovered new exit (range 13) 26900 | -3/Research | Found Exp. EM Disruption Field 27267 | -3/Research | Repaired Enh. Nova Cannon? 27296 | -3/Research | Fabricated Exp. Utility Shielding (x1) 27367 | -3/Research | Search patrols dispatched 27389 | -3/Research | Identified exit to Research 27443 | -3/Research | Repaired Cmb. Linear Gravjet 27469 | -3/Research | Repaired Fusion Bomb Launcher 27494 | -3/Research | Repaired Cmb. Linear Gravjet 27617 | -3/Research | Search patrols dispatched 27641 | -3/Research | Entered Quarantine 27736 | -3/Quarantine | Found Alien Artifact 27772 | -3/Quarantine | Identified Terrabomb 27983 | -3/Quarantine | Found Alien Artifact 28037 | -3/Quarantine | Repaired Cmb. Linear Gravjet? 28067 | -3/Quarantine | Repaired Cmb. Linear Gravjet 28102 | -3/Quarantine | Repaired Energy Mantle? 28134 | -3/Quarantine | Repaired Cmb. Linear Gravjet 28135 | -3/Quarantine | Repaired Plasma Lance? 28171 | -3/Quarantine | Identified Subatomic Replicator 28290 | -3/Quarantine | Found Alien Slashing Weapon 28335 | -3/Quarantine | Discovered exit to Research (range 3) 28354 | -3/Quarantine | Identified Sigix Broadsword 28589 | -3/Quarantine | Found Alien Artifact 28625 | -3/Quarantine | Found Transdimensional Reconstructor 28625 | -3/Quarantine | Warped through subspace 28627 | -3/Quarantine | Found Alien Artifact 28627 | -3/Quarantine | Identified Hpw. Transdimensional Reconstructor (x2) 28640 | -3/Quarantine | Scanned by Researcher 28662 | -3/Quarantine | Found Dimensional Node Initializer 28663 | -3/Quarantine | Found Dimensional Node Initializer 28705 | -3/Quarantine | Found Transdimensional Reconstructor 28765 | -3/Quarantine | Warped through subspace 28765 | -3/Quarantine | Spotted Fortress 28793 | -3/Quarantine | Core integrity fell below 50% 28817 | -3/Quarantine | Discovered new exit (range 5) 28818 | -3/Quarantine | Identified exit to Section 7 28821 | -3/Quarantine | Entered Section 7 28843 | -3/Section 7 | Found Alien Artifact 28873 | -3/Section 7 | Found Alien Artifact 28949 | -3/Section 7 | Found Alien Artifact 29200 | -3/Section 7 | Spotted S7 Guard 29202 | -3/Section 7 | Found Alien Artifact 29481 | -3/Section 7 | Repaired Mic. Antimatter Reactor? 29483 | -3/Section 7 | Initialized slip node 29623 | -3/Section 7 | Identified Integrated Dissipator 29623 | -3/Section 7 | Identified Integrated Thermoelectric Network 29623 | -3/Section 7 | Identified Spacefold Activator (x2) 29631 | -3/Section 7 | Installed Integrated Dissipator, increased core heat dissipation (+20) 29632 | -3/Section 7 | Installed Integrated Thermoelectric Network, gained heat-energy exchange potential 29723 | -3/Section 7 | Found Alien Artifact 29742 | -3/Section 7 | Identified Microwarp Drive 29763 | -3/Section 7 | Repaired Cmb. Antigrav System 29892 | -3/Section 7 | Spotted B-86 Titan 30150 | -3/Section 7 | Repaired Hvy. Antimatter Reactor 30367 | -3/Section 7 | Spotted B-99 Colossus 30392 | -3/Section 7 | Found Alien Artifact 30396 | -3/Section 7 | Found Alien Artifact 30396 | -3/Section 7 | Identified LRC Armor 30396 | -3/Section 7 | Installed LRC Armor, increased core integrity (+250) 30398 | -3/Section 7 | Found Alien Artifact 30444 | -3/Section 7 | Found Alien Artifact 30620 | -3/Section 7 | Identified Integrity Redistributor 30620 | -3/Section 7 | Identified LRC Energy Well 30620 | -3/Section 7 | Identified LRC Insulator 30623 | -3/Section 7 | Installed LRC Energy Well, increased energy storage capacity (+250) 30624 | -3/Section 7 | Installed LRC Insulator, gained EM resistance (25) 30693 | -3/Section 7 | Found Transdimensional Reconstructor 30742 | -3/Section 7 | Spotted Executioner 30755 | -3/Section 7 | Found Alien Reactor 30804 | -3/Section 7 | Found Integrity Redistributor 30806 | -3/Section 7 | Found Integrity Redistributor 30807 | -3/Section 7 | Warped through subspace to slip node 30811 | -3/Section 7 | Identified Matter Drive 30834 | -3/Section 7 | Entered Research 30834 | -2/Research | Evolved 2 slots: Propulsion x1, Utility x1 30864 | -2/Research | Identified exit to Testing 30864 | -2/Research | Identified exit to Access 30929 | -2/Research | Found Prototype Processor 30978 | -2/Research | Identified Spectral Analyzer 31062 | -2/Research | Spotted B-90 Cyclops 31545 | -2/Research | Found Prototype Device 31748 | -2/Research | Repaired Broken Cmb. Linear Gravjet? 31782 | -2/Research | Found Prototype Protection 31782 | -2/Research | Identified Centrium Heavy Armor Plating 31864 | -2/Research | Repaired Cmb. Linear Gravjet? 31894 | -2/Research | Repaired Cmb. Linear Gravjet? 32055 | -2/Research | Entered Testing 32055 | -2/Testing | Accompanied by 2 allies 32100 | -2/Testing | Found Prototype Device 32252 | -2/Testing | Repaired Cmb. Linear Gravjet? 32286 | -2/Testing | Found Prototype Ballistic Gun 32286 | -2/Testing | Identified Hyp. Multirail 32332 | -2/Testing | Identified Beam Splitter 32332 | -2/Testing | Identified AEGIS Remote Shield 32412 | -2/Testing | Found Prototype Launcher 32456 | -2/Testing | Identified Z-bomb Delivery System 32504 | -2/Testing | Found Prototype Energy Cannon 32504 | -2/Testing | Identified Imp. Potential Cannon 32537 | -2/Testing | Found Exp. Hacking Suite 32563 | -2/Testing | Found Prototype Energy Cannon 32563 | -2/Testing | Identified Disintegrator 32673 | -2/Testing | Repaired Cmb. Linear Gravjet 32707 | -2/Testing | Repaired Gravity Flail 33250 | -2/Testing | Entered Access 33250 | -1/Access | Evolved 2 slots: Power x1, Utility x1 33592 | -1/Access | Fabricated Coolant Network (x1) 33623 | -1/Access | Incoming investigation squad redirected 33632 | -1/Access | Fabricated Exp. Weapon Shielding (x1) 33829 | -1/Access | Fabricated Prc. Energy Filter (x1) 33857 | -1/Access | Fabricated Exp. Targeting Computer (x1) 33859 | -1/Access | Incoming investigation squad redirected 33886 | -1/Access | Identified exit to Command 34112 | -1/Access | Spotted B-99 Colossus 34146 | -1/Access | Repaired Exp. Weapon Shielding? 34160 | -1/Access | Found Prototype Energy Gun 34160 | -1/Access | Identified Enh. Gamma Rifle 34162 | -1/Access | Incoming investigation squad redirected 34166 | -1/Access | Fabricated Exp. Utility Shielding (x1) 34389 | -1/Access | Repaired Cmb. Linear Gravjet 34415 | -1/Access | Entered Command 34446 | -1/Command | Found Prototype Device 34540 | -1/Command | Repaired Cmb. Linear Gravjet 34589 | -1/Command | Spotted B-99 Colossus 34625 | -1/Command | Identified exit to Surface 34665 | -1/Command | First assault squad dispatched 34669 | -1/Command | Repaired Coolant Network 34694 | -1/Command | Repaired Cmb. Linear Gravjet 34708 | -1/Command | Incoming investigation squad redirected 34781 | -1/Command | Repaired Lgt. Particle Reactor 34819 | -1/Command | Repaired Cmb. Linear Gravjet 34861 | -1/Command | Repaired Exp. Utility Shielding 34876 | -1/Command | Identified Exp. Force Field 34891 | -1/Command | Spotted Combat Programmer 34891 | -1/Command | Spotted Combat Programmer 34979 | -1/Command | Met MAIN.C 34986 | -1/Command | 0b10 Conduit disabled 34999 | -1/Command | Destroyed MAIN.C Shell 35002 | -1/Command | MAIN.C activated Command garrisons 35010 | -1/Command | Spotted M Guard 35020 | -1/Command | Used Integrity Redistributor, redistributed integrity from core (-146) 35027 | -1/Command | Spotted M Guard 35052 | -1/Command | Used Integrity Redistributor, redistributed integrity from core (-132) 35065 | -1/Command | Destroyed Combat Programmer 35098 | -1/Command | Used Subatomic Replicator to replicate Integrity Redistributor 35099 | -1/Command | Used Integrity Redistributor, redistributed integrity from core (-120) 35100 | -1/Command | Core integrity fell below 50% 35115 | -1/Command | Used Core Regenerator, restored core integrity (+462) 35175 | -1/Command | Lost 12 parts (2p2n7u1w) 35175 | -1/Command | Found Zero-point Reactor 35179 | -1/Command | Found Vortex Chain Reactor 35180 | -1/Command | Found Prototype Device 35180 | -1/Command | Identified Exp. Focal Shield 35190 | -1/Command | System corruption reached 10% 35201 | -1/Command | Core integrity fell below 20% 35210 | -1/Command | Used Integrity Redistributor, redistributed integrity to core (+234) 35229 | -1/Command | Destroyed 9 combat bots 35233 | -1/Command | Destroyed by S-43 Plague with Heavy Machine Gun Last Messages --------------- 35219_ Dropped Exp. Biometal Medium Treads. 35220_ System corrupted: Matter fused (-8). 35220_ Spacefolded through Wall. 35226_ Slug penetrates Wall. 35226_ Exp. Targeting Computer destroyed. 35227_ Spacefolded through Wall. 35227_ Cmb. Linear Gravjet destroyed. 35231_ Dropped Hcp. Storage Unit. 35232_ Cmb. Linear Gravjet destroyed. 35232_ Spacefolded through Wall. 35233_ C-30 ARC bursts open, deploying its payload. 35233_ H-88 Terminator unfolds itself. 35233_ Slug penetrates Wall. 35233_ Penetrated by Slug. 35233_ ECM Suite destroyed. 35233_ Slug penetrates Wall. 35233_ C-30 ARC bursts open, deploying its payload. 35233_ G-73 Enforcer unfolds itself. 35233_ C-30 ARC bursts open, deploying its payload. 35233_ S-43 Plague unfolds itself. Map ----- +----------------------------------------------------+ | # #?????????# =#??###| #????????? | | "" """" # ########+## #??#[*] #????????? | | "" """" + #??#][] ] #????????? | | "" """" # #??#!! #????????? | | "" """" # #########!! =#????????? | | # !! # #########????????? | | # !! # #????????????????? | | ############ !% # #????????????????? | | ?# ! # / #????????????????? | | ?# # ########### #????????????????? | | ?# # #?????????# #????############# | | ?# + #?????????# #???#""""""" "" | | ?# """" # #?????????# #???#"" "" | | ## """" # #?????????# #???#""""" | | # """" # #?????????#########???#""""""""""" | | ?# """" # #???????????#######???#" " """ | | ?# # #???????????# #???#"" """" " | | ?# # #???????????# ! #???#"" """" | | ?###########%^#######?????#= #???# " "" | | ?????####### "## %#?????#=* #???# " | | ###### "#" <%#?????#!*= #???# " | | % % % #?????##]* ##???#"" % | | % %#??????# #???#"" | | # "####??????# #?### | | "" i########### ### "% | | """ p ]h @ # ##""" | | """" hl % # | | " k %;l "" | | = %;p " | | p ; ; k ##### """""""""" | | ; ; #???# " """ " | | "" #; ; ; #???# """ " | | """" ### ;; % ;; ; #???############## | | """" ##;;;;; ;;; ##??????????????? | | " % s #??????????????? | | % ggs #?????????????? | | ggsss #?????????????? | | s #?????????????? | | ################ ; ##?????????????? | | #??????????????# #########;;;;##??????????????? | | #??????????????#Y #????????#####???????????????? | | #??????????????# #????????????????????????????? | | #??????????????# h #????????????????????????????? | | #??????????????# #????????????????????????????? | | ##+##??????????# #????????????????????????????? | | ??????????? #????????????????????????????? | | ???????????? #????????????????????????????? | | ##????????????## ##???????????????????????????? | | ############### #???????????????????????????? | | # "" ## #???????????????????????????? | +----------------------------------------------------+ Best States ------------- Heat Dissipation 162 Coolant Potential 80 Energy Generation 103 Energy Capacity 1090 Matter Stores 300 Matter Capacity 300 Sight Range 24 Robot Scan Range 20 Terrain Scan Range 24 Terrain Scan Density 210 ECM Strength 3 Jamming Range 12 Additional Mass Support 9 Armor Coverage 450 Resistance: KI 30 Resistance: TH 10 Resistance: EM 100 Utility Shielding 90 Weapon Shielding 90 Weapon Cycling 20 Phase Shifting 15 Evasion (%) 73 Targeting Accuracy 12 Melee Accuracy 8 Recoil Reduction 4 Energy Filtering 50 Particle Charging 15 Offensive Hacking 71 Defensive Hacking 14 Authchip Count 5 Item Schematics ----------------- Huge Storage Unit | -10/Materials | Hacked Lrg. Storage Unit | -9/Materials | Scanalyzed Mni. Grenade Launcher | -9/Materials | Scanalyzed Hcp. Storage Unit | -9/Mines | Hacked Hacking Suite | -8/Materials | Hacked Imp. VTOL Module | -8/Materials | Scanalyzed Hvy. Particle Gun | -8/Materials | Scanalyzed Imp. Shield Generator | -7/Factory | Hacked Combat Drone Bay | -7/Data Miner | Free Lgt. Regenerative Plating | -7/Data Miner | Free Biomechanical Wings | -7/Data Miner | Free Gravity Neutralizer | -7/Data Miner | Free Com. Ion Cannon | -7/Data Miner | Free Gyrokinetic Inverter | -7/Data Miner | Free Point Defense System | -7/Data Miner | Free Variable Charge Gun | -7/Data Miner | Free Hvy. Phase Cannon | -7/Data Miner | Free Imp. Focal Shield | -7/Data Miner | Free Hvy. Siege Treads | -7/Data Miner | Free Imp. Hacking Suite | -6/Factory | Hacked Imp. System Shield | -6/Extension | Hacked Adv. Sensor Array | -6/Extension | Hacked Imp. Actuator Array | -6/Extension | Hacked Adv. Hacking Suite | -5/Factory | Hacked Mic. Antimatter Reactor | -5/Factory | Hacked Cmb. Gravmag System | -5/Factory | Hacked Adv. System Shield | -5/Factory | Hacked Exp. Propulsion Shielding | -5/Factory | Hacked Exp. Weapon Shielding | -5/Factory | Hacked Impulse Thruster | -5/Factory | Hacked Adv. Reaction Control System | -5/Factory | Hacked Cmb. Antigrav System | -5/Factory | Hacked Field Propulsion Array | -5/Factory | Hacked Lrn. Sensor Array | -5/Factory | Hacked Centrium Medium Armor Plating | -5/Factory | Scanalyzed Adv. ECM Suite | -5/Factory | Scanalyzed Assault Drone Bay | -5/Zhirov | Free Exp. Heat Sink | -5/Zhirov | Free Exp. Optical Array | -5/Zhirov | Free Imp. Arc Thrower | -5/Zhirov | Free Hvy. Disruptor Cannon | -4/Factory | Hacked Exp. Hacking Suite | -4/Factory | Hacked Cld. Proton Cannon | -4/Factory | Hacked Exp. System Shield | -4/Factory | Hacked Nanoactuators | -4/Factory | Hacked Antimissile System | -4/Factory | Hacked Exp. Signal Interpreter | -4/Factory | Hacked Plasma Lance | -4/Factory | Scanalyzed Graphene Brace | -4/Factory | Scanalyzed Enh. Nova Cannon | -4/Armory | Hacked Exp. Utility Shielding | -4/Armory | Hacked Cmb. Linear Gravjet | -3/Research | Hacked Exp. Sensor Array | -3/Research | Hacked Exp. Actuator Array | -3/Research | Hacked Plasma Sword | -3/Research | Scanalyzed Energy Mantle | -3/Research | Scanalyzed Exp. Transmission Jammer | -3/Research | Hacked Gravity Flail | -3/Research | Scanalyzed Prc. Energy Filter | -3/Research | Scanalyzed Exp. EM Disruption Field | -3/Research | Scanalyzed Enh. Force Lance | -3/Research | Hacked Exp. ECM Suite | -3/Research | Scanalyzed Prc. Matter Filter | -3/Research | Scanalyzed Lgt. Quantum Reactor | -3/Research | Hacked Hvy. Antimatter Reactor | -3/Research | Scanalyzed Cld. Linear Gravjet | -3/Quarantine | Hacked Nanosword | -3/Quarantine | Hacked Impulse Thruster Array | -3/Quarantine | Hacked Exp. Cooling System | -3/Quarantine | Archive Hvy. Gatling Laser | -3/Quarantine | Archive Ionic Axe | -3/Quarantine | Archive Hellfire Missile Launcher | -3/Section 7 | Hacked Imp. Quantum Reactor | -3/Section 7 | Hacked Imp. Q-thruster | -3/Section 7 | Hacked Enh. Force Rifle | -3/Section 7 | Scanalyzed Quantum Capacitor | -3/Section 7 | Hacked Exp. Melee Analysis Suite | -2/Research | Hacked Exp. Targeting Computer | -2/Research | Hacked Spectral Analyzer | -2/Research | Scanalyzed Shock Maul | -2/Research | Scanalyzed Beam Splitter | -2/Testing | Scanalyzed Coolant Network | -2/Testing | Hacked Robot Schematics ------------------ B-48 Gladiator | -7/Factory | Hacked Y-54 Guardian | -7/Data Miner | Free A-15 Conveyor | -7/Data Miner | Free W-25 Informer | -7/Data Miner | Free B-60 Warrior | -7/Data Miner | Free R-10 Processor | -7/Data Miner | Free H-66 Slayer | -4/Factory | Hacked G-67 Veteran | -3/Research | Hacked K-01 Serf | -3/Quarantine | Archive B-74 Champion | -3/Section 7 | Hacked G-73 Enforcer | -2/Testing | Hacked Fabricated ------------ H-66 Slayer | x2 | -5/Factory | Preloaded Cmb. Antigrav System | x2 | -5/Factory | Authchip Cmb. Antigrav System | x2 | -5/Factory Lrn. Sensor Array | x1 | -5/Factory Exp. Hacking Suite | x1 | -4/Factory | Authchip G-50 Soldier | x3 | -4/Factory | Preloaded Exp. Signal Interpreter | x1 | -4/Factory | Authchip Exp. Hacking Suite | x1 | -4/Factory D-63 Destroyer | x1 | -4/Armory | Preloaded Cmb. Antigrav System | x2 | -4/Armory | Authchip Cmb. Linear Gravjet | x2 | -3/Research | Authchip Exp. Sensor Array | x1 | -3/Research | Authchip Exp. Utility Shielding | x1 | -3/Research | Authchip Coolant Network | x1 | -1/Access | Authchip Exp. Weapon Shielding | x1 | -1/Access Prc. Energy Filter | x1 | -1/Access | Authchip Exp. Targeting Computer | x1 | -1/Access Exp. Utility Shielding | x1 | -1/Access Alien Tech Used ----------------- Integrated Reactor Transdimensional Reconstructor Sigix Broadsword High-powered Transdimensional Reconstructor Dimensional Node Initializer Integrated Dissipator Integrated Thermoelectric Network Microwarp Drive LRC Armor Spacefold Activator LRC Energy Well LRC Insulator Matter Drive Integrity Redistributor Subatomic Replicator Core Regenerator Achievements -------------- Artifact Hunter Superinsulated Challenges ------------ None Game ------ Seed CarbideDeuteriumRipper Manual? 0 Play Time 12:54:53 Cumulative 296.4 hours Start 2022.06.03 @ 18:59:38 End 2022.06.05 @ 02:28:03 Sessions 5 Manual Loads 0 Difficulty Rogue Special Mode None Game No. 82 Rogue 82 Adventurer 0 Explorer 0 Win Type - Total 14 Types 12/0/2/0/0/0/0/0/0 Lore% 87 Gallery% 88 Achievement% 73 Wizard Run 0 Options --------- ASCII 0 Keyboard 0 Movement Numpad Keybinds 0 Fullscreen 1 Font 14/SmallcapsGlow Map View 84x54 Tactical HUD 1 Map Filters NONE Filters NONE Steam 1 RUN: c12435dc-2af9-4b77-b1f2-0e1cc50df9bb